Cogmind - Beta 15 --- EXPLORER MODE // 2025.05.28 @ 23:35:14 Player: Apathy Deity Result: Destroyed by Tracker with Linked Autogun Performance ------------- Evolutions (9) 4500 Regions Visited (25) 5000 Robots Destroyed (523) 2615 Value Destroyed (26652) 26652 Prototype IDs (68) 1360 Alien Tech Used (10) 2000 Bonus (38409) 38409 TOTAL SCORE: 80536 Bonus ------- Triggered Max Security 3000 High Alert Combat Kills 6885 Follower Combat Kills 11363 Entered Garrisons 200 Met Data Miner 300 Met Imprinter 300 Triggered Deep Caves Wall 500 Exposed GOLEM Chamber 500 Acquired ECA 300 Built Enhanced Grunts 300 A7 Reached Mainframe 300 Met R17 at Cetus 500 Found Hidden Lab 3000 Used Core Reset Matrix 3000 Met R17 at Research 2000 Scanned by Researcher 500 Pursued by Intercept 2000 Met Sigix 2000 Activated Exoskeleton 3000 Friendly Fire -1539 Cogmind --------- Core Integrity 0/1600 Matter 160/425 Energy 98/100 System Corruption 2% Temperature Cool (0) Movement Core (50) Location -1/Access Parts ------- > --- POWER (2) -------- (None) > --- PROPULSION (6) --- (None) > --- UTILITY (15) ----- (None) > --- WEAPON (3) ------- (None) > --- INVENTORY (5) ---- Light Antimatter Reactor Spacefold Activator Fusion Bomb Launcher Fusion Bomb Launcher Peak State ------------ > --- POWER ------------ Vortex Chain Reactor > --- PROPULSION ------- Enhanced Biometal Leg Enhanced Biometal Leg Enhanced Biometal Leg Enhanced Biometal Leg Assembled Alloy Leg Assembled Alloy Leg > --- UTILITY ---------- Assembled Nanovents Assembled Nanovents Assembled Nanovents Huge Storage Unit Assembled Biocell Array Assembled Biocell Array Assembled Suspension Frame Assembled Combat Suite Improved Weapon Cycler Assembled Alloy Armor Assembled Alloy Armor Heavy Regenerative Plating GOLEM Unit > --- WEAPON ----------- Sigix Sheargun Sigix Sheargun Assembled Focal Cannon > --- INVENTORY -------- Light Antimatter Reactor Matter Drive Enhanced Biometal Leg Experimental Optical Array Advanced Particle Charger Experimental Hacking Suite Quantum Router Core Expander Core Regenerator Spacefold Activator Sigix Sheargun Fusion Bomb Launcher Fusion Bomb Launcher Fusion Bomb Launcher [Rating: 237] Favorites ----------- Power Assembled Flux Generator Engine Deuterium Engine Power Core Micro Nuclear Core Reactor Assembled Flux Generator Propulsion Enhanced Flexi-carbon Leg Treads Light Treads Leg Enhanced Flexi-carbon Leg Hover Unit Zionite Glidesys I Utility Visual Processing Unit Device GOLEM Unit Storage Assembled Biocell Array Processor Visual Processing Unit Hackware Hacking Suite Protection Assembled Alloy Armor Weapon Assembled Focal Cannon Energy Gun Zionite Phaser-S Energy Cannon Assembled Focal Cannon Ballistic Gun Gauss Rifle Ballistic Cannon Mini Assault Cannon Launcher Fusion Bomb Launcher Special Weapon Improved Plasma Cutter Impact Weapon Heavy Flail Slashing Weapon Scythe Build | -11 -10 -9 -8 -8 -7 -7 -7 -6 -6 -6 -6 -6 -5 -5 -5 -5 -5 -4 -4 -4 -3 -3 -3 -2 -1 ------- Run | Yrd Mat Mat Mat Gar Fac Low Dat Pro Fac Low Zio Dee Pro Fac Ext Cet Arc Fac Arm Lab Res Qua Sec Res Acc Slots Evolved 19 | . 1 2 2 . 2 . . . 2 . . . . 2 . . . 2 . . 2 . . 2 2 Power 1 | . . . . . 1 . . . . . . . . . . . . . . . . . . . . Propulsion 4 | . . 1 1 . . . . . . . . . . 1 . . . 1 . . . . . . . Utility 13 | . 1 1 1 . 1 . . . 2 . . . . 1 . . . 1 . . 2 . . 2 1 Weapon 1 | . . . . . . . . . . . . . . . . . . . . . . . . . 1 Parts Attached 203 | 7 3 13 15 18 16 . 12 4 20 . 6 23 2 7 2 5 2 5 15 5 9 2 6 6 . Power 22 | 1 . 2 . 3 3 . 1 1 6 . 2 2 . . . . . . . . . . . 1 . Engine 13 | 1 . 2 . 3 2 . 1 . 3 . 1 . . . . . . . . . . . . . . Core 6 | . . . . . 1 . . 1 3 . 1 . . . . . . . . . . . . . . Reactor 3 | . . . . . . . . . . . . 2 . . . . . . . . . . . 1 . Propulsion 57 | 2 . 5 5 6 4 . 5 . 1 . . 6 . 3 . 2 . 2 7 . 4 . 5 . . Treads 26 | 2 . 5 5 6 4 . 1 . . . . 3 . . . . . . . . . . . . . Leg 30 | . . . . . . . 4 . 1 . . 2 . 3 . 2 . 2 7 . 4 . 5 . . Wheel . | . . . . . . . . . . . . . . . . . . . . . . . . . . Hover 1 | . . . . . . . . . . . . 1 . . . . . . . . . . . . . Flight . | . . . . . . . . . . . . . . . . . . . . . . . . . . Utility 78 | 2 2 4 5 3 4 . 4 3 9 . 1 10 1 4 2 3 2 3 8 2 5 1 . . . Device 35 | . 1 2 1 1 . . 2 3 5 . 1 5 . 2 2 . 1 1 2 . 5 1 . . . Storage 7 | 1 1 . 1 . 1 . . . 1 . . 1 . . . 1 . . . . . . . . . Processor 3 | . . . 1 . . . . . . . . . . 1 . . . 1 . . . . . . . Hackware 6 | . . . . . 1 . . . 1 . . . . . . . 1 . 3 . . . . . . Protection 27 | 1 . 2 2 2 2 . 2 . 2 . . 4 1 1 . 2 . 1 3 2 . . . . . Artifact . | . . . . . . . . . . . . . . . . . . . . . . . . . . Weapon 46 | 2 1 2 5 6 5 . 2 . 4 . 3 5 1 . . . . . . 3 . 1 1 5 . Energy Gun 10 | . . . . 2 . . . . . . . 4 . . . . . . . 1 . . . 3 . Energy Cannon 5 | . . . . . . . . . 3 . . 1 . . . . . . . 1 . . . . . Ballistic Gun 17 | 2 1 2 5 3 3 . . . 1 . . . . . . . . . . . . . . . . Ballistic Cannon 1 | . . . . . 1 . . . . . . . . . . . . . . . . . . . . Launcher 6 | . . . . 1 . . . . . . 1 . 1 . . . . . . . . . 1 2 . Special Weapon 1 | . . . . . . . . . . . . . . . . . . . . 1 . . . . . Impact Weapon 4 | . . . . . 1 . . . . . 2 . . . . . . . . . . 1 . . . Slashing Weapon 2 | . . . . . . . 2 . . . . . . . . . . . . . . . . . . Piercing Weapon . | . . . . . . . . . . . . . . . . . . . . . . . . . . Special Melee Weapon . | . . . . . . . . . . . . . . . . . . . . . . . . . . Unidentified Prototypes 26 | . . . 1 . 2 . 2 . 2 . . 10 . . . 2 . . . 5 1 . . 1 . Corrupted Parts 1 | . . . . . . . . . . . . . . . . . . . . . 1 . . . . System Corruption 5 | . . . . . . . . . . . . . . . . . . . . . 5 . . . . Parts Lost 61 | . . . 4 6 . . 4 1 1 . 2 6 2 1 . . . 1 2 . 2 . 2 4 23 Power 6 | . . . . . . . 1 . 1 . . 2 . . . . . . . . . . . 1 1 Propulsion 17 | . . . . 4 . . 1 . . . . 3 . . . . . . 1 . . . . 1 7 Utility 34 | . . . 3 1 . . 2 1 . . 2 1 2 1 . . . 1 1 . 2 . 2 2 13 Weapon 4 | . . . 1 1 . . . . . . . . . . . . . . . . . . . . 2 Highest Loss Streak 14 | . . . 1 4 . . 2 1 1 . 1 4 2 1 . . . 1 1 . 1 . 1 3 14 To Critical Strikes 5 | . . . . 2 . . . . . . . 1 . . . . . . . . . . . . 2 Average Backups 15 | 1 5 13 14 13 14 17 17 19 19 19 19 14 14 14 14 14 15 14 14 12 15 20 19 16 8 Power 1 | . 1 1 1 1 1 2 1 4 3 3 3 2 1 1 1 1 1 1 1 1 1 1 1 1 1 Propulsion . | . . 1 1 . . 1 . . . . . 1 . . . . . . . . . 2 1 1 . Utility 7 | . 2 3 3 5 4 6 6 7 7 10 10 5 12 12 12 12 13 12 12 8 6 6 5 5 2 Weapon 4 | . . 6 8 7 7 8 8 8 7 6 6 5 . 1 1 1 1 1 1 1 3 4 4 5 2 Tool/Special . | . . . . . . . . . . . . . . . . . . . . . . . . . . Unused Backups 71 | . . 7 3 2 8 . 2 . 4 . . 13 1 . . 3 . 1 2 11 1 5 1 . 7 Power 7 | . . . . . 1 . . . . . . 1 1 . . 1 . . . . . 2 . . 1 Propulsion 6 | . . 1 . . . . . . . . . 5 . . . . . . . . . . . . . Utility 29 | . . 2 . . 2 . 1 . 1 . . 4 . . . 2 . . . 11 1 1 . . 4 Weapon 23 | . . 3 3 2 5 . . . 3 . . 3 . . . . . 1 2 . . 1 . . . Tool/Special 6 | . . 1 . . . . 1 . . . . . . . . . . . . . . 1 1 . 2 Average Slot Usage (%) 89 | . 99 99 95 97 99 100 92 99 95 100 99 85 81 82 83 85 87 86 82 81 87 89 89 84 58 Engine 3 | . 12 10 8 8 12 14 13 8 5 6 2 . . . . . . . . . . . . . . Core 1 | . . . . . 1 . . 5 6 6 9 . . . . . . . . . . . . . . Reactor 3 | . . . . . . . . . . . . 8 6 5 5 5 5 5 5 5 4 4 4 4 2 Treads 6 | . 25 30 33 31 28 28 23 . . . . 3 . . . . . . . . . . . . . Leg 18 | . . . . . . . 1 28 25 25 25 16 25 26 27 26 26 26 25 24 23 27 27 24 15 Device 20 | . 12 19 16 16 14 14 11 15 23 25 24 23 13 15 16 16 16 19 19 28 26 26 26 23 18 Storage 8 | . 12 10 8 8 7 7 7 7 6 6 6 6 12 11 11 11 11 10 10 9 12 13 13 12 7 Processor 4 | . . . 5 8 7 7 7 7 6 6 6 6 6 5 5 5 5 5 4 . . . . . . Protection 8 | . 12 10 6 7 7 7 6 7 9 12 11 7 5 5 5 10 11 10 7 4 8 9 9 11 6 Energy Cannon 6 | . . . . . . . . . 6 12 8 2 11 11 11 9 11 10 9 8 8 8 8 4 2 Ballistic Gun 3 | . 24 20 15 13 13 14 10 14 5 . . . . . . . . . . . . . . . . Peak Build Rating 237 | 7 10 18 24 27 44 45 68 75 85 78 79 129 134 148 145 154 154 172 173 184 195 202 208 220 237 Average Rating 109 | 5 9 14 21 24 38 44 44 70 82 78 77 88 128 142 140 143 148 166 162 164 187 190 198 210 157 On Entrance 102 | . 7 10 18 24 25 44 45 68 75 78 78 70 128 128 140 140 149 149 172 164 166 183 190 199 216 Naked Turns 173 | . . . . . . . . . . . . . . . . . . . . . . . . . 173 Heaviest Build 194 | 21 33 38 38 43 79 79 87 77 110 98 99 167 175 176 176 176 170 173 185 182 174 174 192 194 193 Greatest Support 200 | 40 40 63 83 83 84 84 112 112 112 101 101 112 112 132 111 139 88 176 176 196 196 186 200 200 200 Greatest Overweight (x) 56 | . . . . . . . 2 . 1 . . 2 1 1 1 1 56 1 1 1 1 . 1 1 1 Average Overweight (x) . | . . . . . . . . . . . . . 1 1 1 1 3 . . . . . . . . Largest Inventory Capacity 25 | 10 15 15 25 15 20 20 20 20 20 20 20 25 25 25 25 25 25 25 25 25 25 25 25 25 25 Average Capacity 21 | 8 11 15 15 15 15 20 20 20 20 20 20 20 25 25 25 25 25 25 25 24 25 25 25 25 14 Most Carried 25 | 3 9 15 15 15 18 19 20 20 20 20 20 25 25 25 25 25 25 25 25 25 22 25 25 21 14 Average Carried 19 | 1 5 13 14 14 15 18 18 20 19 20 19 16 24 24 24 24 25 24 24 18 16 23 23 17 8 Final Capacity 25 | 10 15 15 15 15 20 20 20 20 20 20 20 25 25 25 25 25 25 25 25 25 25 25 25 25 5 Final Carried 25 | 3 9 15 15 15 18 19 20 20 20 20 20 25 25 25 25 25 25 25 25 13 19 22 19 14 4 Class Distribution -------------------- 36% | Hacker-Golem 36% | Scavenger-Mutant 12% | Hacker-Mutant 8% | Scavenger-Golem 3% | Alien-Golem Dominant Class ---------------- Hacker-Mutant | -10/Materials Scavenger-Mutant | -9/Materials Scavenger-Mutant | -8/Materials Scavenger-Mutant | -8/Garrison Hacker-Mutant | -7/Factory Hacker-Mutant | -7/Lower Caves Hacker-Mutant | -7/Data Miner Scavenger-Mutant | -6/Proximity Caves Scavenger-Mutant | -6/Factory Scavenger-Mutant | -6/Lower Caves Scavenger-Mutant | -6/Zion Scavenger-Mutant | -6/Deep Caves Hacker-Golem | -5/Proximity Caves Hacker-Golem | -5/Factory Hacker-Golem | -5/Extension Hacker-Golem | -5/Cetus Scavenger-Golem | -5/Archives Hacker-Golem | -4/Factory Hacker-Golem | -4/Armory Hacker-Golem | -4/Lab Hacker-Golem | -3/Research Hacker-Golem | -3/Quarantine Hacker-Golem | -3/Section 7 Alien-Golem | -2/Research Alien-Golem | -1/Access Resources | -11 -10 -9 -8 -8 -7 -7 -7 -6 -6 -6 -6 -6 -5 -5 -5 -5 -5 -4 -4 -4 -3 -3 -3 -2 -1 ----------- Run | Yrd Mat Mat Mat Gar Fac Low Dat Pro Fac Low Zio Dee Pro Fac Ext Cet Arc Fac Arm Lab Res Qua Sec Res Acc Matter Collected 7989 | 286 214 519 816 669 734 . 403 320 813 . 195 721 289 90 89 70 40 60 190 231 173 81 370 302 314 Remotely . | . . . . . . . . . . . . . . . . . . . . . . . . . . Salvage Created 26872 | 139 573 974 1597 863 1323 . 403 290 2066 . 416 1207 655 1146 1721 349 563 1528 3152 77 861 917 3155 2053 844 Parts 1206 | 11 25 50 105 51 70 . 16 11 78 . 26 45 35 55 79 8 31 70 166 3 37 35 113 73 13 Haulers Intercepted 17 | . 2 2 3 . 3 . . . 1 . . . 1 2 . . . 2 . . 1 . . . . Recyclers Shooed 18 | 1 1 3 7 . 2 . . . 2 . . . . . 1 . . . . . . . . . 1 Parts Field Recycled . | . . . . . . . . . . . . . . . . . . . . . . . . . . Retrieved Matter . | . . . . . . . . . . . . . . . . . . . . . . . . . . Parts Self-Destructed . | . . . . . . . . . . . . . . . . . . . . . . . . . . Prevented . | . . . . . . . . . . . . . . . . . . . . . . . . . . Kills | -11 -10 -9 -8 -8 -7 -7 -7 -6 -6 -6 -6 -6 -5 -5 -5 -5 -5 -4 -4 -4 -3 -3 -3 -2 -1 ------- Run | Yrd Mat Mat Mat Gar Fac Low Dat Pro Fac Low Zio Dee Pro Fac Ext Cet Arc Fac Arm Lab Res Qua Sec Res Acc Combat Hostiles Destroyed 411 | . 7 12 24 23 14 . 4 6 26 . 6 53 12 16 16 5 3 19 43 1 9 10 49 40 13 Guns 114 | . 7 12 24 21 14 . 4 6 8 . . 9 . . . . . . . . . . . 6 3 Cannons 192 | . . . . . . . . . 14 . 2 7 8 16 16 5 3 19 42 1 9 9 31 9 1 AOE 96 | . . . . 2 . . . . 2 . 4 33 4 . . . . . . . . . 18 24 9 Classes Destroyed 31 | 2 3 6 1 1 1 . . 2 2 . 2 4 2 . . . . . . . . 1 2 2 . Worker 13 | . . 1 1 . 3 . . . 3 . . . . 2 . . . . . . 1 . 1 . 1 Builder 8 | . . 1 3 . 1 . . . 2 . . . . . 1 . . . . . . . . . . Tunneler 2 | 2 . . . . . . . . . . . . . . . . . . . . . . . . . Hauler 17 | . 2 2 3 . 3 . . . 1 . . . 1 2 . . . 2 . . 1 . . . . Recycler 23 | 1 2 4 4 . 5 . . . 4 . . . . . 3 . . . . . . . . . . Minesweeper 1 | . . . . . . . . 1 . . . . . . . . . . . . . . . . . Mechanic 18 | . . . 2 . 1 . . . 1 . . . 1 1 . . . . 1 . 1 . 5 3 2 Operator 23 | . . 1 2 . . . . . . . . . . 1 2 . 9 1 2 . 1 3 . 1 . Drone 2 | . . . . . . . . 2 . . . . . . . . . . . . . . . . . Watcher 21 | . 1 1 3 2 1 . . . 3 . . . . . 2 1 . 2 2 . 1 . . 1 1 Swarmer 44 | . . 2 8 10 4 . . . 6 . . . 2 4 1 . . . 3 . 1 1 2 . . Saboteur 2 | . . . . . . . . . . . . . . . . . . . . . . . . 2 . Grunt 120 | . 7 6 12 5 4 . . 3 10 . . . 3 6 2 . . 6 8 . 3 3 20 14 8 Brawler 13 | . . 1 . . . . . . . . . . . . 3 . . . . . . . 5 2 2 Duelist 16 | . . . . . . . . . 1 . . . . . . . . 1 5 . . . 3 4 2 Protector 10 | . . . . . . . . . . . . . 1 . . . . . 1 . . . 2 6 . Sentry 54 | . . 3 4 6 5 . . . 5 . . . . 3 4 . 3 5 6 . 1 1 7 . 1 Specialist 7 | . . . . . . . . . . . . . 1 . . . . . 6 . . . . . . Hunter 27 | . . . . 2 . . . . . . . . 3 . 4 . . 3 4 . 3 2 3 3 . Programmer 33 | . . . . . 1 . . 1 3 . . . 1 3 . . . 4 10 . 1 1 4 4 . Behemoth 5 | . . . . . . . . . 1 . . . 1 . 2 . . . 1 . . . . . . Cetus Guard 5 | . . . . . . . . . . . . . . . . 5 . . . . . . . . . Enhanced Grunt 4 | . . . . . . . 4 . . . . . . . . . . . . . . . . . . Tracker 1 | . . . . . . . . . . . . . . . . . . . . . . . 1 . . Combat Programmer 2 | . . . . . . . . . . . . . . . . . . . . . . 1 1 . . Investigator 4 | . . . . . . . . . . . . . . . . . . . . . . . 1 2 1 Striker 4 | . . . . . . . . . . . . . . . . . . . . . . . 1 3 . Executioner 2 | . . . . . . . . . . . . . . . . . . . . . . . . 2 . Fortress 1 | . . . . . . . . . . . . . . . . . . . . . . 1 . . . Zionite 18 | . . . . . . . . . . . 18 . . . . . . . . . . . . . . Z-Technician 3 | . . . . . . . . . . . . 3 . . . . . . . . . . . . . Z-Light 9 | . . . . . . . . . . . . 9 . . . . . . . . . . . . . Assembler 2 | . . . . . . . . . . . . 2 . . . . . . . . . . . . . Assembled 42 | . . . . . . . . . . . . 42 . . . . . . . . . . . . . Golem 3 | . . . . . . . . . . . . 2 . . . . . . . . . . 1 . . Wasp 1 | . . . . . . . . . . . 1 . . . . . . . . . . . . . . Butcher 1 | . . . . . . . . . . . 1 . . . . . . . . . . . . . . Guerrilla 1 | . . . . . . . . . . . 1 . . . . . . . . . . . . . . Mutant 5 | . . . . . . . . . . . 5 . . . . . . . . . . . . . . Best Kill Streak 37 | 3 3 6 8 7 4 . 1 2 10 . 20 37 9 6 3 3 5 5 9 1 3 4 27 27 10 Combat Bots Only 34 | . 2 2 5 7 3 . 1 2 5 . 5 34 7 5 2 3 3 5 7 1 3 3 22 18 8 Max Kills in Single Turn 9 | 1 1 1 2 2 2 . 1 1 2 . 4 9 2 1 1 1 1 1 1 1 1 1 7 4 3 Gunslinging 1 | . . . 1 1 1 . . . . . . . . . . . . . . . . . . . . Exploded 9 | . . . . 2 . . . . 2 . 1 9 2 . . . . . . . . . 5 4 3 Melee . | . . . . . . . . . . . . . . . . . . . . . . . . . . Uniques/NPCs Destroyed 2 | . . . . . . . . . . . 1 . . . . . . . . 1 . . . . . Imprinter (-6/Zion) A5 (-4/Lab) Combat | -11 -10 -9 -8 -8 -7 -7 -7 -6 -6 -6 -6 -6 -5 -5 -5 -5 -5 -4 -4 -4 -3 -3 -3 -2 -1 -------- Run | Yrd Mat Mat Mat Gar Fac Low Dat Pro Fac Low Zio Dee Pro Fac Ext Cet Arc Fac Arm Lab Res Qua Sec Res Acc Hostile Shots Fired 3515 | . 27 44 137 272 196 . 39 40 304 . 186 140 123 48 73 9 . 127 311 4 67 55 216 265 832 Missed 1233 | . 9 13 33 64 75 . 5 10 117 . 84 43 49 17 22 2 . 29 87 1 16 33 93 104 327 Deflected 15 | . . . . . . . . . . . . . . . . . . 2 11 1 1 . . . . Hits 2282 | . 18 31 104 208 121 . 34 30 187 . 102 97 74 31 51 7 . 98 224 3 51 22 123 161 505 Melee 41 | . . 3 . . . . . . 2 . 1 . . . 2 . . . 8 . 1 . 2 2 20 Projectile 2241 | . 18 28 104 208 121 . 34 30 185 . 101 97 74 31 49 7 . 98 216 3 50 22 121 159 485 AOE 9 | . . . . . . . . . . . . . . . . . . . . . 2 . 1 2 4 Critical Strikes 80 | . . . 5 7 . . . 2 3 . 4 1 1 1 3 2 . 7 7 . 5 . 6 9 17 Part Disruptions 4 | . . . . . 1 . 2 . . . . . . 1 . . . . . . . . . . . Damage Taken 22709 | . 136 260 966 1492 558 . 779 345 1203 . 803 714 754 373 585 88 . 1498 2585 26 736 322 1601 1714 5171 Core 3351 | . 23 60 64 173 26 . 47 35 98 . 42 111 37 7 47 . . 43 204 . 56 . 171 101 2006 Absorbed by Shields 2479 | . . . . 253 245 . 233 . 165 . . 426 . . 227 68 . . 85 . . . 61 247 469 Redirected to Shielding 14 | . . . . . . . . . . . . 14 . . . . . . . . . . . . . Ignored by Resistances 21939 | . 84 163 587 1066 526 . 575 200 868 . 518 1886 448 219 476 93 . 892 1604 27 764 337 1850 2188 6568 Regen/Repaired (Parts) 1178 | . . . . . . . . . . . . . . 174 39 . . . . 1 130 . . 339 495 Core Remaining (%) 81 | 100 90 85 . 56 . . . 84 . . . . 66 . . . 94 . . 78 . . 77 80 . Volleys Fired 1438 | 4 34 58 114 91 80 . 35 39 117 1 32 75 32 50 61 24 24 72 133 19 44 51 132 83 33 Largest 3 | 2 2 2 2 2 2 . 2 2 2 1 1 2 2 2 2 2 2 2 2 2 2 2 2 2 3 Hottest 225 | 40 40 46 46 46 56 . 56 56 180 90 90 180 50 50 50 50 50 50 50 50 50 50 52 200 225 Shots Fired 2558 | 8 69 116 222 152 157 . 71 77 199 1 31 129 54 94 117 44 48 136 231 34 76 86 236 102 68 Gun 1061 | 8 69 116 222 151 152 . 71 77 71 . . 58 . . . . . . . . . . . 30 36 Cannon 1422 | . . . . . 5 . . . 128 1 15 65 48 94 117 44 48 136 231 34 76 86 231 42 21 Launcher 75 | . . . . 1 . . . . . . 16 6 6 . . . . . . . . . 5 30 11 Special . | . . . . . . . . . . . . . . . . . . . . . . . . . . Kinetic 956 | 8 69 116 222 141 157 . 71 77 95 . . . . . . . . . . . . . . . . Thermal 1383 | . . . . . . . . . 104 1 15 55 48 94 117 44 48 136 231 34 76 86 231 42 21 Explosive 75 | . . . . 1 . . . . . . 16 6 6 . . . . . . . . . 5 30 11 Electromagnetic 20 | . . . . 10 . . . . . . . 10 . . . . . . . . . . . . . Slashing 66 | . . . . . . . . . . . . . . . . . . . . . . . . 30 36 Phasic 58 | . . . . . . . . . . . . 58 . . . . . . . . . . . . . Robot Hit Streak 63 | 5 30 38 54 40 33 . 63 21 23 . 15 16 19 22 38 16 20 32 47 29 35 31 36 48 14 Robot Miss Streak 4 | . 1 1 1 2 2 . . 4 2 . 1 2 1 1 3 1 1 1 2 1 1 1 2 2 1 Penetration Max 1 | . . . . . 1 . . . 1 . . . . . . . . . . . . . . 1 1 Secondary Targets 16 | . . 1 4 5 3 . . . 1 . . . . . . . . . . . . . . 2 . Max Gunslinging Chain 1 | . . 1 1 1 1 . . . 1 . . . . . . . . . . . . . . 1 . Shots Hit Robots 1868 | 5 59 100 188 126 132 . 59 60 132 . 32 88 35 65 82 33 37 102 177 8 52 52 130 82 32 Core Hits 1131 | 4 26 38 75 47 54 . 26 16 64 . 40 94 26 28 33 14 20 41 73 1 20 20 127 146 98 Critical Kills 9 | . . 1 . . 1 . . . 4 . 1 2 . . . . . . . . . . . . . Critical Parts Destroyed 9 | . . . . . 5 . 2 1 1 . . . . . . . . . . . . . . . . Critical Strikes 23 | . . 1 . . 6 . 2 1 6 . 1 4 . . . . . . . . . . . 1 1 Meltdown 4 | . . . . . . . . . 2 . . 2 . . . . . . . . . . . . . Destroy 13 | . . 1 . . 6 . 2 1 3 . . . . . . . . . . . . . . . . Blast 1 | . . . . . . . . . 1 . . . . . . . . . . . . . . . . Smash 1 | . . . . . . . . . . . 1 . . . . . . . . . . . . . . Sever 2 | . . . . . . . . . . . . . . . . . . . . . . . . 1 1 Intensify 2 | . . . . . . . . . . . . 2 . . . . . . . . . . . . . Melee Attacks 125 | . . . . . . . 46 . . . 64 14 . . . . . . . . . 1 . . . Kinetic 1 | . . . . . . . . . . . . . . . . . . . . . . 1 . . . Impact 78 | . . . . . . . . . . . 64 14 . . . . . . . . . . . . . Slashing 46 | . . . . . . . 46 . . . . . . . . . . . . . . . . . . Piercing . | . . . . . . . . . . . . . . . . . . . . . . . . . . Sneak Attacks 5 | . . . . . . . 1 . . . 4 . . . . . . . . . . . . . . Combat Hostiles . | . . . . . . . . . . . . . . . . . . . . . . . . . . Follow-up Attacks . | . . . . . . . . . . . . . . . . . . . . . . . . . . Damage Inflicted 91047 | 55 767 1240 2916 1927 2327 . 1214 1197 4485 . 2905 5445 2375 3140 3866 1392 1824 4988 9407 322 2916 2791 12964 12838 7746 Guns 15531 | 55 754 1225 2891 1761 2243 . 1134 1197 1257 . . 1122 . . . . . . . . . . . 1128 764 Cannons 45649 | . . . . . . . . . 2547 . 386 1576 1370 3058 3823 1392 1824 4558 9375 322 2916 2791 7056 2066 589 Explosions 28668 | . . . . 159 . . . . 563 . 2117 2654 1005 . . . . 395 . . . . 5908 9629 6238 Melee 565 | . . . . . . . 70 . . . 402 93 . . . . . . . . . . . . . Ramming 634 | . 13 15 25 7 84 . 10 . 118 . . . . 82 43 . . 35 32 . . . . 15 155 Kinetic 12869 | 55 754 1225 2891 1685 2243 . 1134 1197 1685 . . . . . . . . . . . . . . . . Thermal 46002 | . . . . . . . . . 2682 . 386 1399 1370 3058 3823 1392 1824 4953 9375 322 2916 2791 7056 2066 589 Explosive 27629 | . . . . 159 . . . . . . 2117 2573 1005 . . . . . . . . . 5908 9629 6238 Electromagnetic 334 | . . . . 76 . . . . . . . 258 . . . . . . . . . . . . . Impact 495 | . . . . . . . . . . . 402 93 . . . . . . . . . . . . . Slashing 1962 | . . . . . . . 70 . . . . . . . . . . . . . . . . 1128 764 Piercing . | . . . . . . . . . . . . . . . . . . . . . . . . . . Phasic 1122 | . . . . . . . . . . . . 1122 . . . . . . . . . . . . . Highest Corruption 6 | . 1 . . . 1 1 1 2 1 . 6 6 6 2 2 1 1 . 1 1 6 6 1 . 2 Average Corruption 3 | . 1 . . . 1 1 1 1 1 . 4 6 6 1 1 1 1 . 1 1 3 6 1 . 1 Corruption Purged 4 | . . . . . . . . . 1 . . . . . 1 . 1 . 1 . . . . . . Corruption Blocked . | . . . . . . . . . . . . . . . . . . . . . . . . . . Effects 311 | . 2 . . . 10 . 9 7 5 . 8 130 37 3 13 4 . . 5 6 27 35 6 . 4 Message Errors 75 | . . . . . 1 . . 1 1 . . 38 6 2 3 1 . . 2 1 5 10 2 . 2 Matter Fused 71 | . 1 . . . 2 . 6 2 . . 2 30 9 . 7 1 . . 1 1 3 3 1 . 2 Heat Flow Errors 42 | . . . . . 1 . 1 1 2 . 1 13 6 . 1 . . . 1 . 7 7 1 . . Energy Discharges 38 | . . . . . 1 . 1 . 1 . 1 18 5 1 . 1 . . 1 1 5 2 . . . Parts Rejected 2 | . . . . . . . . . . . 1 . . . . . . . . . . 1 . . . Parts Fused 4 | . . . . . . . . 1 . . 1 . . . . . . . . . . 2 . . . Data Loss (minor) 42 | . . . . . 3 . . 1 . . . 19 6 . 1 . . . . 2 5 4 1 . . Data Loss (major) 13 | . . . . . . . . . . . 1 3 3 . . 1 . . . 1 1 3 . . . Misfires 11 | . 1 . . . 2 . 1 . . . . 3 2 . . . . . . . 1 1 . . . Alerts 4 | . . . . . . . . . . . . 4 . . . . . . . . . . . . . Weapon Failures 9 | . . . . . . . . 1 1 . 1 2 . . 1 . . . . . . 2 1 . . Overload Shots . | . . . . . . . . . . . . . . . . . . . . . . . . . . Overflow Damage 3189 | . . . . . 2 . . . 93 . 284 268 50 91 153 . 226 187 539 25 131 197 409 410 124 Projectiles 2184 | . . . . . . . . . 29 . 17 137 40 90 130 . 226 167 532 25 131 197 299 79 85 Explosions 749 | . . . . . . . . . 64 . 111 64 10 . . . . 20 . . . . 110 331 39 Melee 256 | . . . . . 2 . . . . . 156 67 . 1 23 . . . 7 . . . . . . Knockbacks 13 | . . . . . . . . . 6 . 3 . . . . . . 1 . . . . . . 3 Impact 7 | . . . . . . . . . . . 3 . . . . . . 1 . . . . . . 3 Kinetic 6 | . . . . . . . . . 6 . . . . . . . . . . . . . . . . Secondary . | . . . . . . . . . . . . . . . . . . . . . . . . . . Self-Inflicted Damage 373 | . . . . 6 . . . . 55 . 67 19 52 . . . . . . . . . 26 28 120 Shots 21 | . . . . 1 . . . . 1 . 6 1 4 . . . . . . . . . 3 2 3 Rammed 25 | . 5 2 8 2 7 . 1 . . . . . . . . . . . . . . . . . . Targets Rammed 50 | . 5 2 9 2 8 . 1 . 6 . . . . 3 1 . . 3 2 . . . . 1 7 Kicked 23 | . . . . . . . . . 6 . . . . 3 1 . . 3 2 . . . . 1 7 Crushed 2 | . . . 1 . 1 . . . . . . . . . . . . . . . . . . . . Highest Temperature 452 | 6 6 2 41 5 452 . 144 87 271 . 189 253 269 74 237 114 18 89 248 12 196 230 152 449 232 Average Temperature 55 | 4 2 2 6 3 53 . 20 19 52 . 64 56 90 23 33 38 6 22 53 4 100 87 26 160 90 Received Heat Transfer 6747 | . 126 126 846 667 220 . . 189 466 . 429 425 93 129 132 . . 463 797 . 296 57 308 369 609 Effects 10 | . . . . . 1 . . . . . . . 1 . . . . . . . . . . 8 . Shutdowns 1 | . . . . . 1 . . . . . . . . . . . . . . . . . . . . Energy Bleed 2 | . . . . . . . . . . . . . 1 . . . . . . . . . . 1 . Interference 7 | . . . . . . . . . . . . . . . . . . . . . . . . 7 . Siege Activations . | . . . . . . . . . . . . . . . . . . . . . . . . . . Martial Activations . | . . . . . . . . . . . . . . . . . . . . . . . . . . Shielding Activations 11 | . . . . . . . . . . . . . . . . . . 1 7 1 2 . . . . Total Turns 200 | . . . . . . . . . . . . . . . . . . 23 121 41 15 . . . . Longest Duration 50 | . . . . . . . . . . . . . . . . . . 23 50 41 8 . . . . Robots Disrupted . | . . . . . . . . . . . . . . . . . . . . . . . . . . Combat Hostiles . | . . . . . . . . . . . . . . . . . . . . . . . . . . Robots Corrupted 5 | . . . . . . . . . . . 1 2 . 1 . . . . 1 . . . . . . Combat Hostiles 2 | . . . . . . . . . . . . 2 . . . . . . . . . . . . . Parts Fried 10 | . . . . . . . . . . . . 2 . . 6 1 . . 1 . . . . . . Impact Corruptions 12 | . . . . . 1 . . . . . 7 1 . 1 1 . . . 1 . . . . . . Robots Melted 5 | . . . . . . . . . 2 . . 2 . . . . . . 1 . . . . . . Combat Hostiles 5 | . . . . . . . . . 2 . . 2 . . . . . . 1 . . . . . . Parts Melted 51 | . . . . . . . . . 14 . 1 10 . 3 3 . 2 3 10 . 2 . 3 . . Heat Transferred 26798 | . . . . . . . . . 3533 . 524 2100 724 1650 2125 850 975 2875 4435 200 1250 1250 3147 911 249 Parts Sabotaged . | . . . . . . . . . . . . . . . . . . . . . . . . . . Parts Stolen . | . . . . . . . . . . . . . . . . . . . . . . . . . . Parts Stripped 18 | . . . . . . . . . . . . . . . . . . . . . . 18 . . . Power Chain Reactions 1 | . . . . . . . . . . . . 1 . . . . . . . . . . . . . Alert | -11 -10 -9 -8 -8 -7 -7 -7 -6 -6 -6 -6 -6 -5 -5 -5 -5 -5 -4 -4 -4 -3 -3 -3 -2 -1 ------- Run | Yrd Mat Mat Mat Gar Fac Low Dat Pro Fac Low Zio Dee Pro Fac Ext Cet Arc Fac Arm Lab Res Qua Sec Res Acc Maximum Alert Level 5 | . . . 1 3 1 . . . 2 . . . . . . . . 2 1 . 3 2 5 5 5 Low Security (%) 51 | 100 100 100 60 13 41 . . . 6 . . . . 100 100 100 100 27 97 . 13 21 23 . . Level 1 21 | . . . 39 37 58 . . . 86 . . . . . . . . 28 2 . 14 28 2 . . Level 2 13 | . . . . 18 . . . . 7 . . . . . . . . 44 . . 66 50 7 . . Level 3 5 | . . . . 30 . . . . . . . . . . . . . . . . 5 . 26 . . Level 4 2 | . . . . . . . . . . . . . . . . . . . . . . . 31 2 . Level 5 . | . . . . . . . . . . . . . . . . . . . . . . . . . 2 High Security . | . . . . . . . . . . . . . . . . . . . . . . . . . . Max Security 5 | . . . . . . . . . . . . . . . . . . . . . . . 8 97 97 Peak Influence 4377 | 10 83 67 299 909 360 . . . 450 . . . . 147 101 84 75 578 235 . 773 628 2279 4377 3401 Initial 1991 | . . . . 50 354 . . . 450 . . . . . . 27 . . 174 . . 193 83 1100 1991 Average 403 | 1 10 12 159 480 189 . . . 294 . . . . 34 18 28 4 318 66 . 476 363 887 2748 2969 Influence Increases 21103 | 15 266 356 772 999 1070 . . 115 1353 . . . 285 533 734 349 182 1323 1473 . 1633 1332 3289 2817 2207 Destroy 0b10 Robot/C 11240 | . 140 240 480 620 640 . . 80 520 . . . 220 320 440 220 80 560 1040 . 760 680 2020 1460 720 Destroy 0b10 Robot/NC 795 | 15 25 50 90 15 70 . . 15 70 . . . 15 30 50 10 45 40 30 . 25 30 60 80 30 Destroy Leader 2116 | . 36 66 122 40 158 . . 20 136 . . . 50 84 66 10 . 140 226 . 174 126 324 226 112 Allied During Kill 1416 | . . . . 26 103 . . . . . . . . . 77 63 33 116 47 . 286 221 285 95 64 Successful Hack 387 | . 35 . . 48 16 . . . 15 . . . . 23 29 . . 24 7 . 83 44 63 . . Select Force Hacks 90 | . 30 . 30 . 30 . . . . . . . . . . . . . . . . . . . . Disable Machine 376 | . . . . . . . . . 32 . . . . 4 20 4 8 84 40 . 16 64 48 44 12 Anti-Garrison Action 500 | . . . . 200 . . . . . . . . . . . . . . . . 150 . 150 . . Destroy Structure 2518 | . . . 5 50 8 . . . 55 . . . . 42 52 42 16 314 68 . 124 152 324 807 459 Advance Influence 450 | . . . . . . . . . 450 . . . . . . . . . . . . . . . . Partial Spotted 30 | . . . . . . . . . . . . . . . . . . . . . 15 15 . . . Lose Combat Pursuer 1185 | . . . 45 . 45 . . . 75 . . . . 30 . . . 45 15 . . . 15 105 810 Influence Decreases 18782 | 15 266 356 670 192 1979 . . 115 1210 143 . . 285 533 668 415 182 838 1958 . 1175 1593 1399 1334 3456 Entered New Map 5091 | . . . . 52 555 . . . . 75 . . . . . 39 . . 311 . . 265 114 1294 2386 Time Decay 11123 | 15 266 356 630 . 1210 . . 115 1200 68 . . 265 523 632 319 158 746 1382 . 1155 868 1215 . . Lost Part 480 | . . . 40 60 . . . . 10 . . . 20 10 . . . 10 20 . 20 . 20 40 230 Lost Ally 1510 | . . . . 80 120 . . . . . . . . . 36 57 24 82 61 . . 160 50 . 840 Purge Threat 578 | . . . . . 94 . . . . . . . . . . . . . 184 . . 300 . . . Squads Dispatched 156 | . 1 2 5 . 9 . . . 3 . . . . 2 1 1 . 8 9 . 9 10 32 21 43 Investigation 15 | . 1 . 1 . 3 . . . . . . . . . 1 1 . 1 1 . 3 2 1 . . Extermination 22 | . . . . . 3 . . . 3 . . . . 1 . . . 2 7 . 1 3 2 . . Reinforcement 27 | . . 2 1 . 3 . . . . . . . . 1 . . . 3 1 . 4 2 7 1 2 Assault 69 | . . . . . . . . . . . . . . . . . . 1 . . . . 16 20 32 Garrison 8 | . . . 3 . . . . . . . . . . . . . . 1 . . . . 1 . 3 Intercept 15 | . . . . . . . . . . . . . . . . . . . . . 1 3 5 . 6 Searches Triggered . | . . . . . . . . . . . . . . . . . . . . . . . . . . Construction Impeded 4 | . . . . . 1 . . . . . . . . . . . . . . . . . . 1 2 Haulers Reinforced 7 | . . . . . 2 . . . . . . . . 1 . . . 2 . . 2 . . . . Active Scanning Responses . | . . . . . . . . . . . . . . . . . . . . . . . . . . Cargo Convoy Interrupts . | . . . . . . . . . . . . . . . . . . . . . . . . . . Stealth | -11 -10 -9 -8 -8 -7 -7 -7 -6 -6 -6 -6 -6 -5 -5 -5 -5 -5 -4 -4 -4 -3 -3 -3 -2 -1 --------- Run | Yrd Mat Mat Mat Gar Fac Low Dat Pro Fac Low Zio Dee Pro Fac Ext Cet Arc Fac Arm Lab Res Qua Sec Res Acc Distress Signals 37 | . 1 2 2 2 2 . . 1 3 . . . . . 2 2 . 1 2 . 7 1 1 5 3 Communications Jammed . | . . . . . . . . . . . . . . . . . . . . . . . . . . Distress Signals . | . . . . . . . . . . . . . . . . . . . . . . . . . . Times Spotted 841 | . 12 18 33 37 33 . 4 7 39 . 28 56 16 18 24 14 15 35 60 1 34 33 104 112 108 Peak Tracking Total 37 | . 3 4 6 8 5 . 2 2 5 . 17 37 9 4 4 5 1 6 8 1 5 4 23 24 21 Tactical Retreats 41 | . . . 3 . 2 . . . 4 . 2 3 . 1 . . . 1 1 . . . 1 3 20 Traps | -11 -10 -9 -8 -8 -7 -7 -7 -6 -6 -6 -6 -6 -5 -5 -5 -5 -5 -4 -4 -4 -3 -3 -3 -2 -1 ------- Run | Yrd Mat Mat Mat Gar Fac Low Dat Pro Fac Low Zio Dee Pro Fac Ext Cet Arc Fac Arm Lab Res Qua Sec Res Acc Traps Triggered 23 | . 2 . . 2 1 . . . . . . . . 4 3 . . . 3 . 1 2 1 1 3 Indirectly . | . . . . . . . . . . . . . . . . . . . . . . . . . . Trap Hack Attempts . | . . . . . . . . . . . . . . . . . . . . . . . . . . Triggered . | . . . . . . . . . . . . . . . . . . . . . . . . . . Disarmed . | . . . . . . . . . . . . . . . . . . . . . . . . . . Reprogrammed . | . . . . . . . . . . . . . . . . . . . . . . . . . . Reused 2 | . . . . . . . . . . . . 2 . . . . . . . . . . . . . Traps Extracted . | . . . . . . . . . . . . . . . . . . . . . . . . . . Installed 3 | . . . . . . . . . . . . 3 . . . . . . . . . . . . . Triggered . | . . . . . . . . . . . . . . . . . . . . . . . . . . Most Traps Carried 3 | . . . . . . . . 3 3 3 3 3 . . . . . . . . . . . . . Machines | -11 -10 -9 -8 -8 -7 -7 -7 -6 -6 -6 -6 -6 -5 -5 -5 -5 -5 -4 -4 -4 -3 -3 -3 -2 -1 ---------- Run | Yrd Mat Mat Mat Gar Fac Low Dat Pro Fac Low Zio Dee Pro Fac Ext Cet Arc Fac Arm Lab Res Qua Sec Res Acc Machines Disabled 117 | . . . . . . . 1 . 8 . 1 3 . 1 6 1 2 22 10 9 5 16 18 11 3 Max in Single Turn 4 | . . . . . . . 1 . 4 . 1 1 . 1 2 1 1 3 1 2 1 1 1 1 1 Garrison Access 6 | . . . . . 1 . . . 1 . . . . . . . . 1 . . 2 . 1 . . Energy Cycler 1 | . . . . . . . . . . . . . . . . . . . . . . . . . 1 Machines Repaired . | . . . . . . . . . . . . . . . . . . . . . . . . . . Machines Dismantled 1 | . . . . . . . . . . . . . . . . . . . . 1 . . . . . Machines Sabotaged . | . . . . . . . . . . . . . . . . . . . . . . . . . . Overloaded Fab Kills . | . . . . . . . . . . . . . . . . . . . . . . . . . . Hacking | -11 -10 -9 -8 -8 -7 -7 -7 -6 -6 -6 -6 -6 -5 -5 -5 -5 -5 -4 -4 -4 -3 -3 -3 -2 -1 --------- Run | Yrd Mat Mat Mat Gar Fac Low Dat Pro Fac Low Zio Dee Pro Fac Ext Cet Arc Fac Arm Lab Res Qua Sec Res Acc Machines Accessed 110 | . 6 1 5 5 9 . 4 1 10 . . . . 5 16 1 . 5 11 1 7 10 13 . . Terminals 72 | . 5 1 2 5 4 . . 1 5 . . . . 3 15 1 . 2 7 . . 9 12 . . Fabricators 13 | . . . . . 3 . . . 1 . . . . 1 . . . 2 4 . 2 . . . . Repair Stations 5 | . . . 1 . . . . . 1 . . . . 1 1 . . . . . 1 . . . . Recycling Units 6 | . 1 . 1 . 1 . . . 2 . . . . . . . . . . . 1 . . . . Scanalyzers 3 | . . . . . . . . . . . . . . . . . . . . . 2 1 . . . Garrison Access 6 | . . . 1 . 1 . . . 1 . . . . . . . . 1 . . 1 . 1 . . Total Hacks 286 | . 24 1 15 10 22 . 29 1 21 . . . . 14 38 2 . 13 32 1 13 23 27 . . Successful 189 | . 19 . 7 6 18 . 29 1 12 . . . . 8 23 . . 8 23 1 8 10 16 . . Failed 97 | . 5 1 8 4 4 . . . 9 . . . . 6 15 2 . 5 9 . 5 13 11 . . Catastrophic 16 | . 1 1 . 1 1 . . . . . . . . 2 . 2 . 1 1 . 2 3 1 . . Database Lockouts . | . . . . . . . . . . . . . . . . . . . . . . . . . . Manual 116 | . 15 1 8 4 10 . . . 7 . 5 . . 8 12 1 . 3 17 . . 14 11 . . Terminals 186 | . 23 1 10 10 13 . . 1 12 . . . . 8 36 2 . 7 17 . . 22 24 . . Fabricators 36 | . . . . . 7 . . . 3 . . . . 4 . . . 4 15 . 3 . . . . Repair Stations 9 | . . . 2 . . . . . 1 . . . . 2 2 . . . . . 2 . . . . Recycling Units 8 | . 1 . 1 . 1 . . . 4 . . . . . . . . . . . 1 . . . . Scanalyzers 6 | . . . . . . . . . . . . . . . . . . . . . 5 1 . . . Garrison Access 11 | . . . 2 . 1 . . . 1 . . . . . . . . 2 . . 2 . 3 . . Terminal Hacks 99 | . 12 . 3 5 6 . 29 1 3 . . . . 1 13 . . 2 8 1 . 5 10 . . Record 15 | . . . . . . . 11 1 . . . . . . . . . . . . . 2 1 . . Part Schematic 13 | . . . . . 2 . 10 . . . . . . . . . . 1 . . . . . . . Robot Schematic 5 | . . . . . . . 5 . . . . . . . . . . . . . . . . . . Robot Analysis 4 | . 2 . 1 . . . . . . . . . . . . . . . . . . 1 . . . Prototype ID Bank 11 | . 4 . 1 . . . 3 . . . . . . . 2 . . . 1 . . . . . . Open Door 12 | . . . . 1 . . . . . . . . . 1 6 . . . . . . . 4 . . Level Access Points 3 | . 1 . 1 . . . . . . . . . . . . . . . . . . . 1 . . Branch Access Points 4 | . 1 . . . 1 . . . 1 . . . . . . . . 1 . . . . . . . Emergency Access Points 4 | . . . . 1 . . . . 1 . . . . . . . . . 2 . . . . . . Terminal Index 2 | . . . . . . . . . . . . . . . 1 . . . . . . . 1 . . Alert Level 2 | . 1 . . . . . . . . . . . . . 1 . . . . . . . . . . Unreport Threat 5 | . . . . . 1 . . . . . . . . . . . . . 2 . . 2 . . . Locate Traps 5 | . . . . . 1 . . . . . . . . . 2 . . . 2 . . . . . . Recall Extermination 1 | . . . . . . . . . . . . . . . . . . . 1 . . . . . . Hauler Manifests 1 | . 1 . . . . . . . . . . . . . . . . . . . . . . . . Registered Components 1 | . . . . . . . . . . . . . . . 1 . . . . . . . . . . Zone Layout 6 | . 2 . . . 1 . . . 1 . . . . . . . . . . . . . 2 . . Garrison Registry 1 | . . . . 1 . . . . . . . . . . . . . . . . . . . . . Patrol Navigation 1 | . . . . 1 . . . . . . . . . . . . . . . . . . . . . Security Stations 1 | . . . . 1 . . . . . . . . . . . . . . . . . . . . . Activate Exoskeleton 1 | . . . . . . . . . . . . . . . . . . . . . . . 1 . . Release Object 1 | . . . . . . . . . . . . . . . . . . . . 1 . . . . . Fabricator Hacks 22 | . . . . . 6 . . . 2 . . . . 2 . . . 3 7 . 2 . . . . Network Status 3 | . . . . . 2 . . . . . . . . . . . . . . . 1 . . . . Load Schematic 11 | . . . . . 2 . . . 1 . . . . 1 . . . 2 4 . 1 . . . . Build 8 | . . . . . 2 . . . 1 . . . . 1 . . . 1 3 . . . . . . Repair Station Hacks 6 | . . . . . . . . . . . . . . 2 2 . . . . . 2 . . . . Scan Component 3 | . . . . . . . . . . . . . . 1 1 . . . . . 1 . . . . Repair 3 | . . . . . . . . . . . . . . 1 1 . . . . . 1 . . . . Recycling Unit Hacks 2 | . . . . . . . . . 2 . . . . . . . . . . . . . . . . Report Inventory 1 | . . . . . . . . . 1 . . . . . . . . . . . . . . . . Retrieve Matter 1 | . . . . . . . . . 1 . . . . . . . . . . . . . . . . Scanalyzer 5 | . . . . . . . . . . . . . . . . . . . . . 4 1 . . . Insert Component 3 | . . . . . . . . . . . . . . . . . . . . . 2 1 . . . Analyze 2 | . . . . . . . . . . . . . . . . . . . . . 2 . . . . Garrison Access Hacks 4 | . . . 1 . 1 . . . 1 . . . . . . . . 1 . . . . . . . Unlock Access 1 | . . . 1 . . . . . . . . . . . . . . . . . . . . . . Seal Access 3 | . . . . . 1 . . . 1 . . . . . . . . 1 . . . . . . . Unauthorized Hacks 50 | . 6 . 3 1 5 . . . 4 . . . . 3 8 . . 2 8 . . 4 6 . . Terminals 41 | . 5 . 2 1 3 . . . 3 . . . . 2 8 . . 1 6 . . 4 6 . . Assimilate 1 | . . . . . . . . . . . . . . . . . . . . . . 1 . . . Botnet 40 | . 5 . 2 1 3 . . . 3 . . . . 2 8 . . 1 6 . . 3 6 . . Fabricators 6 | . . . . . 1 . . . 1 . . . . 1 . . . 1 2 . . . . . . Prioritize 3 | . . . . . . . . . 1 . . . . 1 . . . . 1 . . . . . . Recompile 3 | . . . . . 1 . . . . . . . . . . . . 1 1 . . . . . . Repair Stations . | . . . . . . . . . . . . . . . . . . . . . . . . . . Recycling Units 3 | . 1 . 1 . 1 . . . . . . . . . . . . . . . . . . . . Tunnel 3 | . 1 . 1 . 1 . . . . . . . . . . . . . . . . . . . . Scanalyzers . | . . . . . . . . . . . . . . . . . . . . . . . . . . Garrison Access . | . . . . . . . . . . . . . . . . . . . . . . . . . . Data Cores Recovered 6 | . . . 1 . . . . . . . . . . 1 2 . . . 1 . . . 1 . . Used 2 | . . . . . . . . . . . . . . . . . . . 1 . . . 1 . . Hacking Detections 82 | . 5 1 3 5 6 . . . 8 . . . . 4 12 1 . 3 10 . 7 8 9 . . Full Trace Events 5 | . . . . . . . . . . . . . . . 1 1 . . . . 1 1 1 . . Feedback Events . | . . . . . . . . . . . . . . . . . . . . . . . . . . Feedback Blocked . | . . . . . . . . . . . . . . . . . . . . . . . . . . Robot Schematics Acquired 15 | . . . . . . . 5 . . . 3 . . . . . . . . . . . 7 . . Robots Built . | . . . . . . . . . . . . . . . . . . . . . . . . . . Authchips . | . . . . . . . . . . . . . . . . . . . . . . . . . . Time . | . . . . . . . . . . . . . . . . . . . . . . . . . . Total Robot Build Rating . | . . . . . . . . . . . . . . . . . . . . . . . . . . Part Schematics Acquired 46 | . . . . . 2 . 10 . . . 15 . . . . . . 1 . . 2 . 16 . . Parts Built 11 | . . . . . 3 . . . 2 . . . . 1 . . . 1 4 . . . . . . Authchips 4 | . . . . . . . . . 1 . . . . . . . . . 3 . . . . . . Time 608 | . . . . . 120 . . . 53 . . . . 76 . . . 46 313 . . . . . . Total Part Build Rating 67 | . . . . . 11 . . . 12 . . . . 5 . . . 9 30 . . . . . . Parts Repaired 3 | . . . . . . . . . . . . . . 1 1 . . . . . 1 . . . . Time 146 | . . . . . . . . . . . . . . 89 28 . . . . . 29 . . . . Parts Recycled . | . . . . . . . . . . . . . . . . . . . . . . . . . . Recycled Matter . | . . . . . . . . . . . . . . . . . . . . . . . . . . Retrieved Matter . | . . . . . . . . . . . . . . . . . . . . . . . . . . Retrieved Components . | . . . . . . . . . . . . . . . . . . . . . . . . . . Parts Scanalyzed 2 | . . . . . . . . . . . . . . . . . . . . . 2 . . . . Part Schematics Acquired 2 | . . . . . . . . . . . . . . . . . . . . . 2 . . . . Parts Damaged 1 | . . . . . . . . . . . . . . . . . . . . . 1 . . . . Bothacking | -11 -10 -9 -8 -8 -7 -7 -7 -6 -6 -6 -6 -6 -5 -5 -5 -5 -5 -4 -4 -4 -3 -3 -3 -2 -1 ------------ Run | Yrd Mat Mat Mat Gar Fac Low Dat Pro Fac Low Zio Dee Pro Fac Ext Cet Arc Fac Arm Lab Res Qua Sec Res Acc Used RIF Installer . | . . . . . . . . . . . . . . . . . . . . . . . . . . Robots Hacked . | . . . . . . . . . . . . . . . . . . . . . . . . . . Non-combat . | . . . . . . . . . . . . . . . . . . . . . . . . . . Combat . | . . . . . . . . . . . . . . . . . . . . . . . . . . Robot Hacks Applied . | . . . . . . . . . . . . . . . . . . . . . . . . . . Relay Couplers Released 7 | . . . . . . . . . . . . . . . . . . . . . 2 3 2 . . Machine Destruction 4 | . . . . . . . . . . . . . . . . . . . . . 2 . 2 . . Programmers 3 | . . . . . . . . . . . . . . . . . . . . . . 3 . . . Fabnet Peak Effective % . | . . . . . . . . . . . . . . . . . . . . . . . . . . Robots Rewired 22 | . . . . 13 . . . . . . . . . . . . . . 9 . . . . . . Allies Hacked 4 | . . . . . 1 . . . . . . . . . . . . . 2 . . 1 . . . Hacks Repelled . | . . . . . . . . . . . . . . . . . . . . . . . . . . Allies | -11 -10 -9 -8 -8 -7 -7 -7 -6 -6 -6 -6 -6 -5 -5 -5 -5 -5 -4 -4 -4 -3 -3 -3 -2 -1 -------- Run | Yrd Mat Mat Mat Gar Fac Low Dat Pro Fac Low Zio Dee Pro Fac Ext Cet Arc Fac Arm Lab Res Qua Sec Res Acc Total Allies 101 | . . . . 13 . . . . . . 3 . . . 10 5 . . 9 10 . 8 1 . 42 Largest Group 12 | . . . . 9 9 . . . . . 3 . . . 8 12 9 6 4 10 10 10 5 1 12 Highest-Rated Group 2340 | . . . . 239 239 . . . . . 78 . . . 339 782 626 368 192 2340 2340 2340 1672 1204 1204 Highest-Rated Ally 1204 | . . . . 40 40 . . . . . 39 . . . 159 159 142 96 56 234 234 234 1204 1204 1204 Initial Warlord ECA Mod 3 | . . . . . 1 1 1 . . . . . . . . . . . . . . . . . . Total Orders 1 | . . . . . . . . . . . . . . . . . . . . 1 . . . . . STAY 1 | . . . . . . . . . . . . . . . . . . . . 1 . . . . . Ally Attacks 991 | . . . . 37 65 . . . . . . . . . 50 84 17 74 55 35 81 54 158 108 173 Total Damage 53723 | . . . . 953 1447 . . . . . . . . . 1351 2522 392 3495 1744 1312 7040 4115 12164 10725 6463 Kills 247 | . . . . 9 18 . . . . . . . . . 8 7 1 13 10 . 30 27 57 42 25 Allies Corrupted 20 | . . . . . . . . . . . 1 . . . . . . . 1 4 . 11 1 . 2 Allies Melted 1 | . . . . . . . . . . . . . . . . . . . 1 . . . . . . Intel | -11 -10 -9 -8 -8 -7 -7 -7 -6 -6 -6 -6 -6 -5 -5 -5 -5 -5 -4 -4 -4 -3 -3 -3 -2 -1 ------- Run | Yrd Mat Mat Mat Gar Fac Low Dat Pro Fac Low Zio Dee Pro Fac Ext Cet Arc Fac Arm Lab Res Qua Sec Res Acc Active Infowar (turns) 27634 | . 941 820 865 1996 1832 179 1126 591 1609 267 3613 5162 1352 1066 1369 607 1255 1050 1934 . . . . . . Optics 25619 | . . . 611 1996 1832 179 1126 591 1609 267 3613 5162 1352 1066 1369 607 1255 1050 1934 . . . . . . Terrain 6268 | . 941 820 402 . . . . . 60 267 3613 165 . . . . . . . . . . . . . Structural 7318 | . . 818 865 1996 1832 179 1126 502 . . . . . . . . . . . . . . . . . Traps 5489 | . . . . . . . . . 1581 267 3613 28 . . . . . . . . . . . . . Robot Analysis Total 4 | . 2 . 1 . . . . . . . . . . . . . . . . . . 1 . . . Derelict Logs Recovered 9 | . . . . . . 3 . 3 . . 1 . 2 . . . . . . . . . . . . Drone Launches . | . . . . . . . . . . . . . . . . . . . . . . . . . . Drone Recoveries . | . . . . . . . . . . . . . . . . . . . . . . . . . . Exploration | -11 -10 -9 -8 -8 -7 -7 -7 -6 -6 -6 -6 -6 -5 -5 -5 -5 -5 -4 -4 -4 -3 -3 -3 -2 -1 ------------- Run | Yrd Mat Mat Mat Gar Fac Low Dat Pro Fac Low Zio Dee Pro Fac Ext Cet Arc Fac Arm Lab Res Qua Sec Res Acc Turns Passed 36362 | 86 941 820 865 1996 1832 179 1126 591 1609 267 3613 5162 1352 1066 1369 607 1255 1050 2185 2585 1638 1217 1791 450 710 Spaces Moved 18057 | 43 500 371 294 983 930 113 455 375 1015 218 2311 2366 606 465 647 260 358 403 1023 737 816 775 1071 203 719 Core 414 | 6 . . . . . . . . . . . . . . . . 13 . . . . . . . 395 Treads 4013 | 37 500 371 294 983 930 113 401 . . . . 384 . . . . . . . . . . . . . Legs 13630 | . . . . . . . 54 375 1015 218 2311 1982 606 465 647 260 345 403 1023 737 816 775 1071 203 324 Wheels . | . . . . . . . . . . . . . . . . . . . . . . . . . . Hover . | . . . . . . . . . . . . . . . . . . . . . . . . . . Flight . | . . . . . . . . . . . . . . . . . . . . . . . . . . Fastest Speed 50 | 50 160 160 160 160 155 155 120 120 120 122 122 122 189 180 180 180 183 136 136 136 126 126 116 116 50 Average Speed 151 | 144 160 160 160 161 157 155 187 120 121 122 122 183 189 187 180 180 293 155 158 136 137 126 121 129 82 Slowest Speed 2850 | 160 160 160 160 163 162 155 260 120 192 122 122 265 189 190 180 183 2850 183 190 190 190 126 172 172 172 Overloaded Moves . | . . . . . . . . . . . . . . . . . . . . . . . . . . Propulsion Burnouts . | . . . . . . . . . . . . . . . . . . . . . . . . . . Robots Hopped 3 | . . . . . . . . . . . . . . . . . . . . . . 3 . . . Potential Cave-ins . | . . . . . . . . . . . . . . . . . . . . . . . . . . Cave-ins Triggered . | . . . . . . . . . . . . . . . . . . . . . . . . . . Teleports 3 | . . . . . . . . . . . . . . . . . . . . . . . 1 2 . Exploration Rate (%) 55 | 3 72 35 29 73 33 30 81 64 37 43 88 93 83 14 85 79 98 22 73 99 29 81 65 13 30 Regions Visited 25 Branch Regions 14 Pre-discovered Areas 6 | . 1 . 1 . 1 1 1 . . . 1 . . . . . . . . . . . . . . Known Exits Taken 22 | 1 1 1 1 . 1 . 1 1 1 . 1 1 1 1 1 1 1 1 1 1 1 1 1 1 . Unknown Exits Taken 2 | . . . . . . 1 . . . 1 . . . . . . . . . . . . . . . Scrap Searched 8 | . . . . . . . . 1 . . 3 . 4 . . . . . . . . . . . . Spaces Dug 144 | . . . . . 2 . 13 . 9 . . 2 6 5 1 . . 9 10 2 8 10 48 1 18 Terrain Destroyed 850 | . . . . 5 3 . 16 . 66 . 7 46 69 25 15 6 6 50 31 8 22 21 120 191 143 Melee 15 | . . . . . . . 13 . . . . 2 . . . . . . . . . . . . . Projectile 335 | . . . . . 3 . 3 . 21 . . 24 18 25 15 6 6 26 31 8 22 21 55 22 29 AOE 500 | . . . . 5 . . . . 45 . 7 20 51 . . . . 24 . . . . 65 169 114 Terrain Rammed . | . . . . . . . . . . . . . . . . . . . . . . . . . . Walls Destroyed . | . . . . . . . . . . . . . . . . . . . . . . . . . . Machines Disabled . | . . . . . . . . . . . . . . . . . . . . . . . . . . Actions | -11 -10 -9 -8 -8 -7 -7 -7 -6 -6 -6 -6 -6 -5 -5 -5 -5 -5 -4 -4 -4 -3 -3 -3 -2 -1 --------- Run | Yrd Mat Mat Mat Gar Fac Low Dat Pro Fac Low Zio Dee Pro Fac Ext Cet Arc Fac Arm Lab Res Qua Sec Res Acc Total 24919 | 56 568 489 467 1233 1149 117 607 442 1226 218 2972 3098 763 593 770 371 532 731 1433 2294 1295 959 1400 329 807 Wait 4080 | . 17 12 12 30 68 4 24 23 20 . 551 486 117 41 38 67 138 235 136 1436 380 97 139 2 7 Move 18026 | 42 499 370 293 982 929 112 454 374 1014 217 2310 2365 605 464 646 259 357 402 1022 736 815 768 1070 202 719 Hop 3 | . . . . . . . . . . . . . . . . . . . . . . 3 . . . Pick Up 187 | 3 6 16 8 6 17 1 16 . 16 . 1 32 1 2 1 3 . 2 8 17 6 12 10 1 2 Fast Attach 137 | 7 3 1 3 8 5 . 8 3 10 . 6 19 1 7 2 6 4 3 15 11 7 1 6 . 1 Attach 83 | . 1 2 5 2 5 . 6 . 7 . . 15 . 1 . . . 1 5 6 11 4 3 5 4 Detach 167 | . . . 2 1 1 . 6 1 4 . . 23 5 5 4 4 7 6 16 23 26 11 6 8 8 Swap 104 | . 2 10 9 17 12 . 2 1 10 . 2 10 1 1 1 . . 3 4 . 1 2 7 6 3 Drop 269 | . 1 18 12 13 24 . 19 1 22 . 6 56 1 4 1 8 2 4 18 30 5 9 9 . 6 Fire 1438 | 4 34 58 114 91 80 . 35 39 117 1 32 75 32 50 61 24 24 72 133 19 44 51 132 83 33 Melee 115 | . . . . . . . 36 . . . 64 14 . . . . . . . . . 1 . . . Ram . | . . . . . . . . . . . . . . . . . . . . . . . . . . Kick 23 | . . . . . . . . . 6 . . . . 3 1 . . 3 2 . . . . 1 7 Crush 27 | . 5 2 9 2 8 . 1 . . . . . . . . . . . . . . . . . . Escape Stasis 97 | . . . . 1 . . . . . . . . . 15 15 . . . 10 . . . 18 21 17 Rewire 144 | . . . . 80 . . . . . . . . . . . . . . 64 . . . . . . Trap 3 | . . . . . . . . . . . . 3 . . . . . . . . . . . . . Miscellaneous 16 | . . . . . . . . . . . . . . . . . . . . 16 . . . . . Route ------- -11/Scrapyard -10/Materials (discovered 6 exits: *Mat x3 / *Min x2 / *Sub) -9/Materials (discovered 2 exits: *Mat / *Min) -8/Materials (discovered 4 exits: *Fac x3 / Gar) -8/Garrison (discovered 3 exits: *Fac x3) -7/Factory (discovered 6 exits: *Fac x2 / Sto x2 / *Low x2) -7/Lower Caves (discovered 2 exits: Low / *Dat) -7/Data Miner -6/Proximity Caves -6/Factory (discovered 5 exits: *Fac x3 / *Low x2) -6/Lower Caves -6/Zion (discovered 2 exits: *Dee / *Pro) -6/Deep Caves -5/Proximity Caves -5/Factory -5/Extension (discovered 2 exits: *Fac / *Cet) -5/Cetus (discovered 2 exits: *Fac / *Arc) -5/Archives (discovered 3 exits: *Fac / *Hub x2) -4/Factory (discovered 4 exits: *Res / Upp x2 / *Arm) -4/Armory -4/Lab -3/Research -3/Quarantine (discovered 2 exits: *Sec / *Frg) -3/Section 7 -2/Research -1/Access History --------- Turn | Location | Event 15 | -11/Scrapyard | Identified exit to Materials 15 | -11/Scrapyard | Discovered exit to Materials (range 16) 87 | -11/Scrapyard | Entered Materials 87 | -10/Materials | Evolved 1 slot: Utility x1 179 | -10/Materials | Identified exit to Mines 179 | -10/Materials | Discovered exit to Mines (range 15) 211 | -10/Materials | Identified exit to Materials 301 | -10/Materials | Build established: Hacker-Mutant 904 | -10/Materials | Identified exit to Subcaves 904 | -10/Materials | Discovered exit to Subcaves (range 5) 1028 | -10/Materials | Entered another Materials area 1028 | -9/Materials | Evolved 2 slots: Propulsion x1, Utility x1 1420 | -9/Materials | Identified exit to Mines 1420 | -9/Materials | Discovered exit to Mines (range 10) 1571 | -9/Materials | Identified exit to Materials 1571 | -9/Materials | Discovered exit to Materials (range 9) 1610 | -9/Materials | Build established: Scavenger-Mutant 1848 | -9/Materials | Entered another Materials area 1848 | -8/Materials | Evolved 2 slots: Propulsion x1, Utility x1 2045 | -8/Materials | Garrison activated, responded to threat 2466 | -8/Materials | Identified exit to Factory 2466 | -8/Materials | Discovered exit to Factory (range 9) 2711 | -8/Materials | Identified exit to Garrison 2713 | -8/Materials | Entered Garrison 2935 | -8/Garrison | Destroyed 7 combat bots 2976 | -8/Garrison | Lost 4 parts (3n1u) 3075 | -8/Garrison | Triggered checkpoint 3657 | -8/Garrison | Triggered checkpoint 3708 | -8/Garrison | Triggered checkpoint 3752 | -8/Garrison | Lost 4 allies 3804 | -8/Garrison | Discovered exit to Factory (range 8) 3861 | -8/Garrison | Triggered checkpoint 3903 | -8/Garrison | Learned Factory security intel 3959 | -8/Garrison | Triggered checkpoint 3976 | -8/Garrison | Triggered checkpoint 4026 | -8/Garrison | Discovered exit to Factory (range 12) 4061 | -8/Garrison | Triggered checkpoint 4091 | -8/Garrison | Triggered checkpoint 4172 | -8/Garrison | Discovered exit to Factory (range 75) 4172 | -8/Garrison | Discovered exit to Factory (range 22) 4172 | -8/Garrison | Discovered exit to Factory (range 50) 4617 | -8/Garrison | Build established: Commander-Mutant 4709 | -8/Garrison | Entered Factory 4709 | -7/Factory | Accompanied by 9 allies 4709 | -7/Factory | Evolved 2 slots: Power x1, Utility x1 5428 | -7/Factory | Identified exit to Storage 5428 | -7/Factory | Identified exit to Lower Caves 5461 | -7/Factory | Identified exit to Factory 5461 | -7/Factory | Discovered exit to Factory (range 4) 5571 | -7/Factory | Fabricated IFF Parser? 5614 | -7/Factory | Build established: Hacker-Mutant 5640 | -7/Factory | Discovered exit to Factory (range 11) 6315 | -7/Factory | Fabricated Hcp. Storage Unit (x1) 6541 | -7/Factory | Entered Lower Caves 6548 | -7/Lower Caves | Learned Factory emergency access door positions 6566 | -7/Lower Caves | Identified exit to Lower Caves 6568 | -7/Lower Caves | Learned location of 1 exit from Factory 6581 | -7/Lower Caves | Met a Warlord Commander 6582 | -7/Lower Caves | Learned location of Warlord (-4) 6583 | -7/Lower Caves | Warlord Commander delivered Encrypted Comm Array 6589 | -7/Lower Caves | Found Encrypted Comm Array 6710 | -7/Lower Caves | A Derelict revealed a hidden shortcut to meet someone special 6720 | -7/Lower Caves | Entered Data Miner 6720 | -7/Data Miner | Identified exit to Proximity Caves 6720 | -7/Data Miner | Discovered exit to Proximity Caves (range 6) 6748 | -7/Data Miner | Met Data Miner 6781 | -7/Data Miner | Learned location of Section 7 (-3) 6781 | -7/Data Miner | Acquired the access code to Warlord's prototype stash 6804 | -7/Data Miner | Received God Mode back door access code from Data Miner 6909 | -7/Data Miner | Data Conduit disabled 7407 | -7/Data Miner | Found Prototype Device 7762 | -7/Data Miner | Identified Exp. Thermal Shield 7846 | -7/Data Miner | Entered Proximity Caves 7855 | -6/Proximity Caves | Learned 4 Factory zone layouts 7951 | -6/Proximity Caves | Spotter reported a threat 7954 | -6/Proximity Caves | Spotter reported a threat 8007 | -6/Proximity Caves | Spotter reported a threat 8045 | -6/Proximity Caves | Build established: Scavenger-Mutant 8306 | -6/Proximity Caves | Learned 4 Factory zone layouts 8424 | -6/Proximity Caves | Discovered exit to Factory (range 3) 8437 | -6/Proximity Caves | Entered Factory 8437 | -6/Factory | Evolved 2 slots: Utility x2 8438 | -6/Factory | Identified exit to Lower Caves 8439 | -6/Factory | Identified exit to Factory 8491 | -6/Factory | Fabricated Lrn. Proton Cannon (x2) 8659 | -6/Factory | Spotted B-75 Beast 9249 | -6/Factory | Destroyed B-75 Beast 9366 | -6/Factory | Discovered exit to Factory (range 8) 9431 | -6/Factory | Found Launcher Loader 9801 | -6/Factory | Discovered exit to Factory (range 8) 10046 | -6/Factory | Entered Lower Caves 10134 | -6/Lower Caves | Entered a destroyed Warlord outpost 10298 | -6/Lower Caves | A Derelict revealed a hidden shortcut to a safe place 10313 | -6/Lower Caves | Entered Zion 10403 | -6/Zion | Received a visual enhancement algorithm 10431 | -6/Zion | Identified exit to Proximity Caves 10431 | -6/Zion | Discovered exit to Proximity Caves (range 18) 10561 | -6/Zion | Ran a visual enhancement algorithm 10753 | -6/Zion | Given the Hacking Drone Bay 10817 | -6/Zion | Gained Derelict followers 10931 | -6/Zion | Learned location of Quarantine (-3) 11546 | -6/Zion | Met Imprinter 13183 | -6/Zion | Murdered 3 allies 13542 | -6/Zion | Warned about damaging Zion machinery 13657 | -6/Zion | Attacked by Zionites 13670 | -6/Zion | Destroyed Imprinter 13686 | -6/Zion | Extracted access codes from Imprinter's data core 13838 | -6/Zion | Opened final containment barrier to the Deep Caves 13923 | -6/Zion | Identified exit to Deep Caves 13923 | -6/Zion | Discovered exit to Deep Caves (range 3) 13923 | -6/Zion | Saw the warning signs outside the Deep Caves entrance 13926 | -6/Zion | Entered Deep Caves 14168 | -6/Deep Caves | Found Prototype Protection 14170 | -6/Deep Caves | Identified Zio. Heavy Carapace 14330 | -6/Deep Caves | Z-Facility disabled 14383 | -6/Deep Caves | Lost 4 parts (1p2n1u) 14396 | -6/Deep Caves | Found Prototype Protection 14396 | -6/Deep Caves | Identified Zio. Weapon Casing 15175 | -6/Deep Caves | Found Zio. Heavy Carapace 15668 | -6/Deep Caves | Identified exit to Proximity Caves 15668 | -6/Deep Caves | Discovered exit to Proximity Caves (range 6) 16088 | -6/Deep Caves | Spotted AG-27196 16236 | -6/Deep Caves | Destroyed AG-27196 16292 | -6/Deep Caves | Spotted AG-73001 16344 | -6/Deep Caves | Destroyed AG-73001 17000 | -6/Deep Caves | Triggered Deep Caves wall 17000 | -6/Deep Caves | Spotted AS-05578 17000 | -6/Deep Caves | Spotted AS-89340 17016 | -6/Deep Caves | Destroyed AS-05578 17031 | -6/Deep Caves | Destroyed 34 combat bots 17034 | -6/Deep Caves | Destroyed AS-89340 17707 | -6/Deep Caves | Exposed GOLEM chamber 17711 | -6/Deep Caves | Found GOLEM Unit 18009 | -6/Deep Caves | Build established: Hacker-Mutant 18556 | -6/Deep Caves | Found GOLEM Unit 18564 | -6/Deep Caves | Found GOLEM Unit 18571 | -6/Deep Caves | Found GOLEM Unit 18578 | -6/Deep Caves | Found GOLEM Unit 18584 | -6/Deep Caves | Found GOLEM Unit 18591 | -6/Deep Caves | Found GOLEM Unit 18598 | -6/Deep Caves | Found GOLEM Unit 18605 | -6/Deep Caves | Found GOLEM Unit 18613 | -6/Deep Caves | Found GOLEM Unit 18686 | -6/Deep Caves | Found GOLEM Unit 18852 | -6/Deep Caves | Build established: Hacker-Golem 19088 | -6/Deep Caves | Entered Proximity Caves 19130 | -5/Proximity Caves | Spotted B-75 Beast 19147 | -5/Proximity Caves | Destroyed B-75 Beast 19351 | -5/Proximity Caves | Unaware initiated a cargo recovery operation 19511 | -5/Proximity Caves | Destroyed 7 combat bots 19641 | -5/Proximity Caves | Learned Factory emergency access door positions 19773 | -5/Proximity Caves | Learned Factory security intel 20301 | -5/Proximity Caves | Discovered exit to Factory (range 10) 20440 | -5/Proximity Caves | Entered Factory 20440 | -5/Factory | Evolved 2 slots: Propulsion x1, Utility x1 20954 | -5/Factory | Repaired Enh. Flexi-carbon Leg 20959 | -5/Factory | Fabricated Multireflex Exoskeleton? 21501 | -5/Factory | Identified exit to Extension 21501 | -5/Factory | Discovered exit to Extension (range 5) 21506 | -5/Factory | Entered Extension 21552 | -5/Extension | Disrupted transfer network 21841 | -5/Extension | Rescued A7 21886 | -5/Extension | Rescued a captive Derelict 21924 | -5/Extension | Rescued a captive Derelict 21925 | -5/Extension | Rescued a captive Derelict 21974 | -5/Extension | Rescued a captive Derelict 21975 | -5/Extension | Rescued a captive Derelict 22038 | -5/Extension | Spotted B-75 Beast 22053 | -5/Extension | Destroyed B-75 Beast 22063 | -5/Extension | Spotted B-75 Beast 22077 | -5/Extension | Destroyed B-75 Beast 22500 | -5/Extension | Rescued a captive Derelict 22502 | -5/Extension | Rescued a captive Derelict 22561 | -5/Extension | Rescued a captive Derelict 22625 | -5/Extension | Rescued a captive Derelict 22626 | -5/Extension | Rescued a captive Derelict 22776 | -5/Extension | Repaired Imp. Weapon Cycler 22830 | -5/Extension | Identified exit to Factory 22830 | -5/Extension | Discovered exit to Factory (range 10) 22832 | -5/Extension | Identified exit to Cetus 22832 | -5/Extension | Discovered exit to Cetus (range 6) 22875 | -5/Extension | Entered Cetus 22875 | -5/Cetus | Accompanied by 8 allies (A7) 22880 | -5/Cetus | Acquired a Cetus Manufacturing Module code from A7 22898 | -5/Cetus | Spotted Cetus Guard 22899 | -5/Cetus | Spotted Cetus Guard 22901 | -5/Cetus | Spotted Cetus Guard 22904 | -5/Cetus | Spotted Cetus Guard 22911 | -5/Cetus | Destroyed Cetus Guard 22916 | -5/Cetus | Destroyed Cetus Guard 22918 | -5/Cetus | Allies destroyed Cetus Guard 22920 | -5/Cetus | Allies destroyed Cetus Guard 23013 | -5/Cetus | Started Cetus Manufacturing Module 23038 | -5/Cetus | Manufactured an Enhanced Grunt 23063 | -5/Cetus | Manufactured an Enhanced Grunt 23088 | -5/Cetus | Manufactured an Enhanced Grunt 23092 | -5/Cetus | Escorted A7 to Cetus Mainframe 23113 | -5/Cetus | Manufactured an Enhanced Grunt 23138 | -5/Cetus | Manufactured an Enhanced Grunt 23167 | -5/Cetus | Identified exit to Archives 23167 | -5/Cetus | Discovered exit to Archives (range 18) 23202 | -5/Cetus | Spotted Cetus Guard 23202 | -5/Cetus | Spotted Cetus Guard 23206 | -5/Cetus | Spotted Cetus Guard 23206 | -5/Cetus | Spotted Cetus Guard 23211 | -5/Cetus | Destroyed Cetus Guard 23218 | -5/Cetus | Allies destroyed Cetus Guard 23218 | -5/Cetus | Destroyed Cetus Guard 23223 | -5/Cetus | Destroyed Cetus Guard 23232 | -5/Cetus | Discovered exit to Factory (range 17) 23247 | -5/Cetus | Lost 3 allies 23247 | -5/Cetus | Met Revision 17 23482 | -5/Cetus | Entered Archives 23482 | -5/Archives | Accompanied by 9 allies (A7) 23487 | -5/Archives | Received a hacking code to weaken MAIN.C 23524 | -5/Archives | Identified exit to Hub_04(d) 23524 | -5/Archives | Discovered exit to Hub_04(d) (range 18) 23535 | -5/Archives | Discovered exit to Factory (range 18) 23629 | -5/Archives | Discovered exit to Hub_04(d) (range 18) 23668 | -5/Archives | Build established: Scavenger-Golem 24737 | -5/Archives | Entered Factory 24737 | -4/Factory | Accompanied by 6 allies 24737 | -4/Factory | Evolved 2 slots: Propulsion x1, Utility x1 25017 | -4/Factory | Identified exit to Upper Caves 25017 | -4/Factory | Identified exit to Armory 25023 | -4/Factory | Garrison activated, responded to threat 25023 | -4/Factory | Identified exit to Research 25023 | -4/Factory | Discovered exit to Research (range 20) 25170 | -4/Factory | Fabricated Hvy. Shield Leg (x1) 25364 | -4/Factory | Lost 3 allies 25462 | -4/Factory | Build established: Hacker-Golem 25737 | -4/Factory | First assault squad dispatched 25787 | -4/Factory | Entered Armory 25815 | -4/Armory | Found Gamma Bomb Array 26205 | -4/Armory | Fabricated Hvy. Shield Leg (x1) 26378 | -4/Armory | Found Fusion Bomb Launcher 26419 | -4/Armory | Build established: Scavenger-Golem 26529 | -4/Armory | Destroyed 7 combat bots 26694 | -4/Armory | Spotted B-86 Titan 27044 | -4/Armory | Build established: Hacker-Golem 27105 | -4/Armory | Fabricated Imp. Plasma Cutter (x2) 27218 | -4/Armory | Destroyed B-86 Titan 27766 | -4/Armory | Identified exit to Lab 27766 | -4/Armory | Discovered exit to Lab (range 4) 27894 | -4/Armory | Fabricated Hvy. Shield Leg (x1) 27972 | -4/Armory | Entered Lab 27972 | -4/Lab | Accompanied by 4 allies 27972 | -4/Lab | Discovered exit to Research (range 9) 28695 | -4/Lab | Gained access to the hidden lab's interior 28825 | -4/Lab | Detected by scanners 28831 | -4/Lab | Confronted by A5 28876 | -4/Lab | Destroyed A5 28888 | -4/Lab | Found Prototype Hackware 28900 | -4/Lab | Lost 4 allies 28906 | -4/Lab | Found Prototype Protection 29011 | -4/Lab | Found Alien Artifact 29011 | -4/Lab | Identified Core Reset Matrix 29011 | -4/Lab | Used Core Reset Matrix 29015 | -4/Lab | Sensed 3 artifacts in vicinity 29097 | -4/Lab | Discovered exit to Research (range 12) 29145 | -4/Lab | Unable to decrypt terminal 29219 | -4/Lab | Identified Med. Regenerative Plating 29321 | -4/Lab | Found Integrated Reactor 29321 | -4/Lab | Installed Integrated Reactor, increased core energy generation (+10) 29332 | -4/Lab | Found Transdimensional Reconstructor 29448 | -4/Lab | Found Core Expander 29470 | -4/Lab | Found Prototype Protection 29475 | -4/Lab | Found Prototype Energy Gun 29475 | -4/Lab | Identified Tachyon Dispersion Ray 29479 | -4/Lab | Found Prototype Energy Cannon 29479 | -4/Lab | Identified Warp Cannon 29484 | -4/Lab | Identified Hvy. Regenerative Plating 29677 | -4/Lab | Found Prototype Hackware 30557 | -4/Lab | Entered Research 30557 | -3/Research | Accompanied by 10 allies 30557 | -3/Research | Evolved 2 slots: Utility x2 30668 | -3/Research | Repaired Enh. Flexi-carbon Leg 30757 | -3/Research | Revision forces began assault on 0b10 30777 | -3/Research | Spotted B-86 Titan 30796 | -3/Research | Allies destroyed B-86 Titan 30890 | -3/Research | Met up with Revision 17++ 30906 | -3/Research | Spotted B-86 Titan 30907 | -3/Research | Allies destroyed B-86 Titan 31053 | -3/Research | Intercept squad dispatched 31257 | -3/Research | Research terminal network offline 31325 | -3/Research | Found Fusion Bomb Launcher 31510 | -3/Research | Spotted Striker 31510 | -3/Research | Allies destroyed Striker 31576 | -3/Research | Lost 5 allies 31613 | -3/Research | Spotted Striker 31616 | -3/Research | Spotted Striker 31618 | -3/Research | Allies destroyed Striker 31624 | -3/Research | Allies destroyed Striker 31822 | -3/Research | Identified exit to Quarantine 31822 | -3/Research | Discovered exit to Quarantine (range 15) 32195 | -3/Research | Entered Quarantine 32195 | -3/Quarantine | Accompanied by 10 allies 32196 | -3/Quarantine | Detected hypermatrix surge 32196 | -3/Quarantine | Sensed 15 artifacts in vicinity 32236 | -3/Quarantine | Found Matter Drive 32254 | -3/Quarantine | Found Core Stripper 32278 | -3/Quarantine | Cryocooling Duct disabled 32293 | -3/Quarantine | Ambient heat levels rising (+20) 32293 | -3/Quarantine | Non-combat units ordered to evacuate 32319 | -3/Quarantine | Found Subatomic Replicator 32355 | -3/Quarantine | Found GOLEM Unit 32670 | -3/Quarantine | Met incapacitated Sigix Warrior 32670 | -3/Quarantine | Lockdown squad dispatched 32671 | -3/Quarantine | Acquired the access code to the Sigix quarantine chamber 32674 | -3/Quarantine | Unlocked Sigix quarantine chamber 32679 | -3/Quarantine | Found Sigix Containment Pod 32961 | -3/Quarantine | Identified exit to Research 32961 | -3/Quarantine | Discovered exit to Research (range 8) 32980 | -3/Quarantine | Found Core Reset Matrix 33027 | -3/Quarantine | Lost 3 allies 33059 | -3/Quarantine | Intercept squad dispatched 33066 | -3/Quarantine | Found Hpw. Transdimensional Reconstructor 33068 | -3/Quarantine | Spotted Tracker 33073 | -3/Quarantine | Spotted Tracker 33074 | -3/Quarantine | Spotted Combat Programmer 33082 | -3/Quarantine | Allies destroyed Tracker 33083 | -3/Quarantine | Destroyed Combat Programmer 33088 | -3/Quarantine | Spotted Combat Programmer 33088 | -3/Quarantine | Allies destroyed Tracker 33090 | -3/Quarantine | Allies destroyed Combat Programmer 33103 | -3/Quarantine | Found Hpw. Transdimensional Reconstructor 33112 | -3/Quarantine | Found Hpw. Transdimensional Reconstructor 33122 | -3/Quarantine | Found Dimensional Node Initializer 33185 | -3/Quarantine | Spotted Fortress 33190 | -3/Quarantine | Destroyed Fortress 33207 | -3/Quarantine | Found Prototype Reactor 33294 | -3/Quarantine | Identified exit to Section 7 33294 | -3/Quarantine | Discovered exit to Section 7 (range 6) 33294 | -3/Quarantine | Identified exit to Protoforge 33294 | -3/Quarantine | Discovered exit to Protoforge (range 6) 33308 | -3/Quarantine | Sensed 9 artifacts in vicinity 33412 | -3/Quarantine | Entered Section 7 33412 | -3/Section 7 | Accompanied by 5 allies 33413 | -3/Section 7 | Detected hypermatrix surge 33413 | -3/Section 7 | Sensed 18 artifacts in vicinity 33476 | -3/Section 7 | Found Spacefold Activator 33597 | -3/Section 7 | Spotted S7 Guard 33630 | -3/Section 7 | Found Core Regenerator 33636 | -3/Section 7 | Allies destroyed S7 Guard 33851 | -3/Section 7 | Intercept squad dispatched 33873 | -3/Section 7 | Spotted Tracker 33881 | -3/Section 7 | Allies destroyed Tracker 33886 | -3/Section 7 | Spotted Combat Programmer 33890 | -3/Section 7 | Allies destroyed Combat Programmer 33912 | -3/Section 7 | First assault squad dispatched 33998 | -3/Section 7 | Garrison activated, responded to threat 34162 | -3/Section 7 | Initialized slip node 34225 | -3/Section 7 | Found Fusion Bomb Launcher 34259 | -3/Section 7 | Spotted Executioner 34261 | -3/Section 7 | Spotted Executioner 34266 | -3/Section 7 | Allies destroyed Executioner 34270 | -3/Section 7 | Allies destroyed Executioner 34328 | -3/Section 7 | Found Transdimensional Reconstructor 34416 | -3/Section 7 | Spotted Striker 34416 | -3/Section 7 | Spotted Striker 34429 | -3/Section 7 | Destroyed Striker 34433 | -3/Section 7 | Allies destroyed Striker 34468 | -3/Section 7 | Found Sigix Sheargun 34472 | -3/Section 7 | Found Sigix Sheargun 34477 | -3/Section 7 | Found Sigix Sheargun 34563 | -3/Section 7 | Spotted Executioner 34564 | -3/Section 7 | Spotted Executioner 34569 | -3/Section 7 | Allies destroyed Executioner 34569 | -3/Section 7 | Allies destroyed Executioner 34667 | -3/Section 7 | Spotted B-99 Colossus 34684 | -3/Section 7 | Allies destroyed B-99 Colossus 34782 | -3/Section 7 | Found LRC Matter Compressor 34782 | -3/Section 7 | Installed LRC Matter Compressor, increased matter storage capacity (+125) 34789 | -3/Section 7 | Used Subatomic Replicator to replicate LRC Insulator 34790 | -3/Section 7 | Found LRC Insulator 34790 | -3/Section 7 | Installed LRC Insulator, 1 resistance modified: EM +25% 34793 | -3/Section 7 | Installed LRC Insulator, 1 resistance modified: EM +25% 34821 | -3/Section 7 | Intercept squad dispatched 34846 | -3/Section 7 | Spotted Tracker 34849 | -3/Section 7 | Destroyed Tracker 34849 | -3/Section 7 | Spotted Tracker 34856 | -3/Section 7 | Allies destroyed Tracker 34898 | -3/Section 7 | Spotted Combat Programmer 34900 | -3/Section 7 | Allies destroyed Combat Programmer 34901 | -3/Section 7 | Spotted Combat Programmer 34902 | -3/Section 7 | Destroyed AG-12513 34904 | -3/Section 7 | Destroyed Combat Programmer 35034 | -3/Section 7 | Activated Sigix Exoskeleton 35034 | -3/Section 7 | Received instructions from Sigix Warrior 35080 | -3/Section 7 | Build established: Alien-Golem 35125 | -3/Section 7 | Warped through subspace to slip node 35162 | -3/Section 7 | Spotted Investigator 35162 | -3/Section 7 | Scanned by Researcher 35168 | -3/Section 7 | Destroyed Investigator 35191 | -3/Section 7 | Destroyed 22 combat bots 35203 | -3/Section 7 | Entered Research 35203 | -2/Research | Accompanied by 1 ally (Sigix Warrior) 35203 | -2/Research | Evolved 2 slots: Utility x2 35290 | -2/Research | Spotted Striker 35290 | -2/Research | Spotted Striker 35301 | -2/Research | Destroyed Striker 35303 | -2/Research | Destroyed Striker 35324 | -2/Research | Destroyed 9 combat bots 35345 | -2/Research | Spotted Executioner 35354 | -2/Research | Warped through subspace 35374 | -2/Research | Sigix Exoskeleton integrity reduced to 80% 35434 | -2/Research | Spotted Striker 35442 | -2/Research | Allies destroyed Striker 35443 | -2/Research | Spotted Striker 35447 | -2/Research | Allies destroyed Striker 35483 | -2/Research | Spotted Investigator 35484 | -2/Research | Destroyed Investigator 35488 | -2/Research | Warped through subspace 35510 | -2/Research | Spotted Striker 35510 | -2/Research | Spotted Executioner 35517 | -2/Research | Sigix Exoskeleton integrity reduced to 60% 35517 | -2/Research | Destroyed Striker 35520 | -2/Research | Destroyed Executioner 35532 | -2/Research | Spotted Striker 35532 | -2/Research | Allies destroyed Striker 35541 | -2/Research | Sigix Exoskeleton integrity reduced to 40% 35577 | -2/Research | Spotted Investigator 35577 | -2/Research | Spotted Executioner 35580 | -2/Research | Destroyed Executioner 35586 | -2/Research | Destroyed Investigator 35590 | -2/Research | Sigix Exoskeleton integrity reduced to 20% 35596 | -2/Research | Identified Vortex Chain Reactor 35601 | -2/Research | Destroyed 18 combat bots 35630 | -2/Research | Lost 3 parts (1p2u) 35633 | -2/Research | Identified exit to Access 35633 | -2/Research | Discovered exit to Access (range 14) 35653 | -2/Research | Entered Access 35653 | -1/Access | Accompanied by 1 ally (Sigix Warrior) 35653 | -1/Access | Evolved 2 slots: Utility x1, Weapon x1 35687 | -1/Access | Energy Cycler disabled 35732 | -1/Access | Destroyed 8 combat bots 35779 | -1/Access | Spotted Investigator 35783 | -1/Access | Allies destroyed Investigator 35859 | -1/Access | Lost 4 parts (1n3u) 35992 | -1/Access | Spotted Investigator 35997 | -1/Access | Destroyed Investigator 36056 | -1/Access | Lost 4 parts (1n2u1w) 36127 | -1/Access | Spotted B-99 Colossus 36128 | -1/Access | Intercept squad dispatched 36143 | -1/Access | Spotted Tracker 36143 | -1/Access | Spotted Tracker 36152 | -1/Access | Spotted Combat Programmer 36154 | -1/Access | Spotted Combat Programmer 36183 | -1/Access | Core integrity fell below 50% 36187 | -1/Access | Emitted hypermatrix ping 36189 | -1/Access | Used Core Regenerator, restored core integrity (+400) 36190 | -1/Access | Assembled emerged from beneath the floor 36192 | -1/Access | Assembled emerged from beneath the floor 36211 | -1/Access | Assembled emerged from beneath the floor 36215 | -1/Access | Lost 14 parts (1p5n7u1w) 36229 | -1/Access | Assembled emerged from beneath the floor 36245 | -1/Access | Assembled emerged from beneath the floor 36275 | -1/Access | Core integrity fell below 20% 36290 | -1/Access | Lost 25 allies 36301 | -1/Access | Intercept squad dispatched 36326 | -1/Access | Spotted Tracker 36332 | -1/Access | Spotted Tracker 36339 | -1/Access | Assembled emerged from beneath the floor 36360 | -1/Access | Spotted Combat Programmer 36363 | -1/Access | Destroyed by Tracker with Linked Autogun Last Messages --------------- 36312_ Penetrated by Slug. 36316_ System corrupted: Matter fused (-9). 36321_ Penetrated by Slug. 36324_ Detected hypermatrix ping. Tracker: "THREAT CONFIRMED. DEPLOY COMBAT PROGRAMMER." 36332_ O-32 Director: "IFF HANDSHAKE FAILED. SECURING TERMINAL." Tracker: "THREAT CONFIRMED. DEPLOY COMBAT PROGRAMMER." 36335_ The unstable cave ceiling collapses. 36339_ Assembled emerge from beneath the floor. 36341_ as-70460 destroyed. 36342_ as-53524 Unknown Hover Unit temporarily disabled. 36342_ Slug penetrates Wall. 36343_ Y-72 Warden shuts down. 36352_ Triggered Alarm Trap. 36352_ An alarm sounds. 36352_ ALERT: Alarm triggered, assault force dispatched. 36354_ BE %QEO,LLJMRB:Z2U2DFPQFO#T0CYXPJC 36360_ EMDS Slug penetrates Wall. 36362_ Tracker Prototype Flight Unit temporarily disabled. 36362_ Penetrated by EMDS Slug. Map ----- +----------------------------------------------------+ | | | | | | | | | | | | | | | ?????????????????????????????????????????????????? | | ?????####???###??????????????????????????????????? | | ?????# ? #??????????????????????????????????? | | ?????# #??????????????????????????????????? | | ?????# " #??????????????????????????????????? | | ?????# """ #??????????????????????????????????? | | ?????# """ #??????????????????????????????????? | | ?????# " #??????????????????????????????????? | | ?????# #??????????????????????????????????? | | ?????# * ???????????????????????????????????? | | ??????? ??#####################+#####????????? | | #########+##### ??????? | | ss #??????????? | | #??????????? | | #??????????? | | ##+###### !!! #??????????? | | ???# !! #####??????????? | | ?# !! #??????????????? | | ## @ #??????????????? | | " # ! #??????????????? | | """ + #??????????????? | | """ # #######??????????????? | | " # ==! ########?????????????? | | !# =!! Rp #?????????????? | | # =!! #?????????????? | | ##??#### +?????????????? | | ???????# #?????????????? | | ???????# #### #?????????????? | | ???????# #??# #?????????????? | | ???????# #??# #?????????????? | | ???????# #??# #?????????????? | | ???????# " #??# ??????? | | #+##+### """ ####+##+############ ??????? | | """ # =#????????????????? | | " # #????????????????? | | # "" #????????????????? | | ###+### # """ #????????????????? | | " # # == T" #????????????????? | | "" # # == """ #????????????????? | | " # # == "" #????????????????? | | # # #????????????????? | | %# # #????????????????? | | % / / = #????????????????? | +----------------------------------------------------+ Best States ------------- Heat Dissipation 97 Energy Generation 65 Energy Capacity 2700 Matter Stores 425 Matter Capacity 425 Sight Range 20 Terrain Scan Range 16 Terrain Scan Density 10 Additional Mass Support 20 Armor Coverage 1600 Resistance: KI 50 Resistance: TH 65 Resistance: EX 50 Resistance: EM 100 Resistance: I 50 Resistance: S 50 Resistance: P 50 Weapon Shielding 100 Weapon Cycling 20 Phase Shifting 8 Evasion (%) 63 Targeting Accuracy 8 Core Analysis 8 Recoil Reduction 4 Energy Filtering 30 Particle Charging 25 Offensive Hacking 30 Authchip Count 1 Item Schematics ----------------- Enh. Force Rifle | -3/Section 7 | Archive Exp. Heat Sink | -3/Section 7 | Archive Hvy. Wave Gun | -3/Section 7 | Archive Exp. ECM Suite | -3/Section 7 | Archive Adv. Variable Charge Gun | -3/Section 7 | Archive Imp. Matter Neutralizer | -3/Section 7 | Archive Adv. KE Penetrator | -3/Section 7 | Archive Adv. Gravity Neutralizer | -3/Section 7 | Archive Tesla Bomb Launcher | -3/Section 7 | Archive Imp. Diametric Drive | -3/Section 7 | Archive Adv. Dynamic Insulation System | -3/Section 7 | Archive Hds. Centrium Wheel | -3/Section 7 | Archive Gravity Neutralizer | -3/Section 7 | Archive Coolant Network | -3/Section 7 | Archive Enh. Biometal Leg | -3/Section 7 | Archive Hvy. Dispersion Rifle | -3/Section 7 | Archive Robot Schematics ------------------ W-44 Eye | -3/Section 7 | Archive B-60 Warrior | -3/Section 7 | Archive S-43 Plague | -3/Section 7 | Archive R-06 Scavenger | -3/Section 7 | Archive A-27 Freighter | -3/Section 7 | Archive M-30 Cleanser | -3/Section 7 | Archive R-10 Processor | -3/Section 7 | Archive Fabricated ------------ IFF Parser | x2 | -7/Factory | Preloaded Hcp. Storage Unit | x1 | -7/Factory Lrn. Proton Cannon | x2 | -6/Factory | Authchip Multireflex Exoskeleton | x1 | -5/Factory Hvy. Shield Leg | x1 | -4/Factory Hvy. Shield Leg | x1 | -4/Armory | Authchip Imp. Plasma Cutter | x2 | -4/Armory | Authchip Hvy. Shield Leg | x1 | -4/Armory | Authchip Repaired ---------- Enh. Flexi-carbon Leg | 3% | -5/Factory Imp. Weapon Cycler | 2% | -5/Extension Enh. Flexi-carbon Leg | 27% | -3/Research Alien Tech Used ----------------- Core Reset Matrix Integrated Reactor Core Stripper Dimensional Node Initializer LRC Matter Compressor Subatomic Replicator LRC Insulator High-powered Transdimensional Reconstructor Sigix Sheargun Core Regenerator Achievements -------------- Everyone Must Die Challenges ------------ None Game ------ Seed NovaAlphaRegenerator Manual? 0 Play Time 05:39:43 Cumulative 181.3 hours Start 2025.05.27 @ 19:25:46 End 2025.05.28 @ 23:35:14 Sessions 5 Manual Loads 0 Difficulty Explorer Special Mode None Game No. 38 Rogue 0 Adventurer 0 Explorer 38 Win Type - Total 19 Types 6/1/4/1/1/1/1/2/1/1 Lore% 66 Gallery% 62 Achievement% 78 Wizard Run 0 Options --------- Layout 0 ASCII 0 Keyboard 1 Movement Numpad Keybinds 0 Fullscreen 1 Font 18/SmallcapsGlow Map View 76x50 Zoom Use 0% Tactical HUD 1 Map Filters NONE Filters BRIGHTNESS(125) Steam 1 RUN: 6b9dd828-9370-458d-a786-8f87052c5f13